Workbook

Sheet Cover
A2: Company Full Certificated Name (Do not abbreviate and include any Commission approved AKA/DBA/Fictitious Name, if applicable.)
A5: WATER and/or SEWER ANNUAL REPORT
A7: SMALL COMPANY
A8: (Fewer than 8,000 customers)
A9: TO THE
A11: MISSOURI PUBLIC SERVICE COMMISSION
A13: January 1 - December 31, | D13: 2012
A16: Please select how the company is certificated with the Commission under the Company Name as shown above (check all that apply):
B17: x | C17: Water Service Provider
B19: x | C19: Sewer Service Provider
A21: Please choose one of the following filing options:
B23: x | C23: Public Submission (NOT Highly Confidential)
C25: Non-Public Submission (Highly Confidential / Filed Under Seal) For this filing to be considered Highly Confidential, additional submission of materials is required pursuant to Commission rule 4 CSR 240-3.335 and/or 4 CSR 240-3.640, Section 392.210, RSMo., and/or Section 393.140, RSMo.
A29: Excel Revised 12/12/2012 | D29: (To be used when filing under seal.)
D77: Public
D78: Highly Confidential

Sheet General Instructions
A1: Missouri Public Service Commission Annual Report Instructions
A3: General Form Information
A4: This report is due to the Missouri Public Service Commission on or before April 15th and is required to be filed on a calendar year basis pursuant to the Commission rules (4 CSR 240-3.335 and/or 4 CSR 240-3.640). Failure to file this report by the deadline of April 15, 2013, could result in penalties up to $100 for every day the report is late pursuant to Section 392.210, RSMo.
A5: • If the document has been prepared by a third-party preparer, it is the responsibility of the company personnel attesting to the accuracy of the document to review the document before submission to the Missouri Public Service Commission.
A6: • After the annual report is complete, save the file to your computer. You may submit it electronically through the Commission's Electronic Filing and Information System (EFIS), as a non-case related submission (see Electronic Filing Instructions on Instructions Pages 4 - 5 for details) or print the form, keep a copy for your records, and prepare for mailing.
A7: • You shall use the form provided by the Commission. You may use one of the three versions provided: 1) the Adobe Fillable document, 2) the Excel version, or 3) the Adobe document that shall be printed and completed by hand.
A8: • The Excel form is "read only". You must save or copy the file to your computer's hard drive to input information into the annual report form.
A9: • If additional space is needed for entering information on a page, please insert a worksheet or page and copy the formats or lines into the new sheet to accommodate the necessary information.
A10: • If you are submitting an annual report extension request, it must be on company letterhead or on the form provided and signed by an officer of the company. A contact email address is also required for approval or rejection of the request.
A11: Questions about the annual report form or its contents may be submitted to: Mark Oligschlaeger at (573) 751-7443 or by e-mail at mark.oligschlaeger@psc.mo.gov.
A13: Treatment of Highly Confidential Information (Submission Under Seal).
A14: Utilities may request classification of selected portions of their annual report as non-public (highly confidential / filed under seal) pursuant to the Commission rules at 4 CSR 240-3.335 and/or 4 CSR 240-3.640. Please note that all information classified as non-public will still remain subject to potential disclosure as provided under the Missouri open records act (Chapter 610 RSMo) and Section 386.480, RSMo.
A15: In order to include Highly Confidential information in the annual report, the submitter must:
A16: Provide two versions of the annual report; 1) a Public version with the Highly Confidential information redacted (removed), and 2) a fully completed version to be kept as Highly Confidential with restricted access. Below are the procedures outlining the requirements for each type of submission:
A17: (A) Public version
A18: 1. Cover – Check the “Public Submission” box and denote “Public” in the lower right corner. 2. Completion – All pages should be completed excluding the non-public information. 3. Page Designation – Each page that has had Highly Confidential information removed must have the “Public” designation in the lower right corner. 4. Format – where Highly Confidential information has been removed, two (2) asterisks shall be placed before and after the information, e.g. **highly confidential information removed**. The field must be left blank to insure the information remains on the same line and page as in the Highly Confidential version.
A19: (Treatment of Highly Confidential Information [Submission Under Seal] continued on the next page.)
A20: -Instructions Page I-
A21: Treatment of Highly Confidential Information (Submission Under Seal) - continued
A22: (B) Highly Confidential version
A23: 1. Cover – Check the “Non-Public Submission” box and denote “Highly Confidential” in the lower right corner. 2. Completion – All pages should be completed including the Highly Confidential information 3. Page Designation – Each page that contains Highly Confidential information must have a “Highly Confidential” designation in the lower right corner. 4. Format – Highly Confidential information shall be designated by two (2) asterisks before and after the information, e.g. **your highly confidential information here**.
A24: (C) Additional documents required with both submissions:
A25: 1. A cover letter stating the utility is designating some or all of the information in its annual report as confidential and requesting non-public treatment under seal. The name, phone number and e-mail address (if available) of the person responsible for addressing questions regarding the confidential portions of the annual report must be included. 2. A notarized affidavit that clearly identifies the specific types of information to be kept under seal. Justification of why the specific information should be a closed record and a statement attesting that none of the information is available to the public in any format.
A26: Detailed Form Information
A27: Page | B27: Definitions and/or Instructions
A28: Cover | B28: Company Name: This shall reflect the certificated name of the company that the Commission approved in a case; when this field is filled in, it will automatically populate the company name at the top of each of the following sheets. The company name listed on the cover shall include any Commission approved fictitious name or d/b/a name (ABC Company d/b/a XYC LLC). Year: When the reporting period year is entered, it will automatically populate at the top of all subsequent pages.
B29: First check box (certification/registration type): Check the box if the company listed on the Company Name line has been approved as competitively classified by the Commission. Second set of check boxes (security level/filing options): Check the first box (Public Submission) if this is the public version of the annual report. Check the bottom box (Non-Public Submission) only if the annual report contains proprietary or highly confidential information in the report. The annual report submission will be considered deficient unless this submission is accompanied by the required documentation. Please see Treatment of Highly Confidential Information in the above section for details.
A30: Verification Page
B31: The verification page must be completed in full, including notary seals, if or where applicable. This page must accompany all versions of this report including any original or revised, highly confidential, proprietary and public versions.
B32: The State Of and County Of fields shall be filled with the location where the notary operates and where this document was notarized. Legal Name of Affiant: Any representative of the company authorized to attest to the accuracy of the annual report. Official Title of the Affiant: Title of the representative named on the line just above this one.
A33: (Verification Page instructions continued on the next page. )
A34: -Instructions Page II-
A35: Detailed Form Information (continued)
A36: Page | B36: Definitions and/or Instructions
A37: Verification Page (continued)
B38: Exact Legal Title or Name of the Respondent: Company Name as certificated/registered with the Commission, as listed on the cover and the top of the verification sheet. Signature of Affiant: Signature of authorized company representative named above on the verification page. The remaining fields are for completion by the notary including the date, month and year of the notarization, the notary's commission expiration date, notary signature, and placement of the notary stamps or seals, where applicable.
B39: When submitting the annual report form electronically, complete the verification page in full. Electronic signatures are acceptable pursuant to Sections 432.200 through 432.295 RSMo. The original document shall be notarized and kept for your records. On the electronic version, type the electronic signatures ( /s/ John Doe) and dates that are reflected on the original document.
A40: Options for Submitting the Annual Report to the Missouri Public Service Commission
A41: The annual report may be submitted to the Missouri Public Service Commission by either of the following methods:
A42: 1. Electronically through the Electronic Filing and Information System (EFIS). This system accepts submissions 24 hours a day and saves on postage/shipping expenses. Please see Instructions Page 4 - 5 for detailed instructions to use this system. If you have questions while using EFIS, staff is available Monday - Friday from 8:00 a.m. - 5:00 p.m. (excluding State holidays) to assist you at (573) 751-7496. NOTE: E-mails and faxes are NOT acceptable methods of filing the annual report electronically.
A43: OR
A44: 2. Mail to the following address: Missouri Public Service Commission Attention: Data Center For package delivery: 200 Madison Street, Suite 100 Jefferson City, MO 65101 For U.S. Mail: P.O. Box 360 Jefferson City, MO 65102-0360
A45: -Instructions Page III-
A46: Electronic Filing of Annual Report Information
A47: If you submit your information electronically, please DO NOT send in a paper copy.
A48: In order to file in the Electronic Filing and Information System (EFIS):
A49: • You must have a user ID and password, • The company you are filing on behalf of must be registered in EFIS. (All certificated companies are already registered in EFIS. Please do not create a company registration), • The person making the filing must be registered as a contact for the company/firm they are making the filing on behalf of, and • You need to have the information you want to submit saved electronically.
A50: If you are unsure if you have a user ID, if your company is registered, or if you are registered as a contact for the company, please contact the Data Center at datacenter-psc@psc.mo.gov or (573) 751-7496 before completing new registration information.
A51: To access EFIS, go to the PSC website at http://www.psc.mo.gov. Click the ‘EFIS / Case Filings’ link from the menu on the left-hand side. Scroll down to the ‘Main Menu Section of EFIS’ and click on the ‘EFIS’ link. This will take you to the EFIS Welcome Screen.
A52: • Click the orange ‘Logon’ button on the left-hand side. • Enter your User ID and Password. NOTE: Passwords are case sensitive.
A53: Submission of Annual Report
A54: • Click on the ‘Filing/Submission’ menu option. • Click on the ‘Non-Case Related Submission’ link.
A55: Complete the Non-Case Related Submission screen with the following information:
A56: • Type of Utility – Select the utility type as which the company is certificated/registered. Separate submissions are required if a company has multiple certifications/registrations (Example: Water and Sewer; or CLEC and IXC). • Company – Select certificated company name. Choose d/b/a name, if applicable. This name should match the name at the top of the annual report's cover page. • Type of Submission – Select ‘Annual Report (Mo PSC)’. • Total Missouri Jurisdictional Revenue – Enter the amount from the annual report form found on Page 1, Item No. 18 (Water) or Item No. 21 (Sewer). • Report for Calendar Year - Type in 2012. • Applicable Case No. – Leave blank. • Date Filed – Will already be filled in. • Click on the ‘Continue’ button. This will take you to the Filing/Submission Attachment screen. • Click on ‘Browse’ – Select the file that contains the completed annual report. • Choose the security level for your document: Public, Highly Confidential, or Proprietary. • Click the ‘Attach’ button. On screen instructions are provided for attaching more than one document. Confirm that the correct document is attached before proceeding. • Click the ‘Done with Attach’ button. This will return you to the original submission screen. • Scroll down and click on the ‘Submit’ button.
A57: This will complete your submission and assign a non-case related tracking number (BMAR-2013-xxxx). Please retain this number for your records.
A58: -Instructions Page IV-
A59: Electronic Filing of Annual Report Information (continued)
A60: Submission of Additional Information
A61: If you are asked to provide additional information or need to file amended information, file it as a ‘Non-Case Related Supplemental Submission’ using the tracking number from your original annual report submission.
A62: Instructions for this type of submission can be found by clicking on the blue ‘Help’ button on the left-hand side of any EFIS screen. Scroll down to ‘Filing / Submission – Non-case Related’. Then choose 'Make a subsequent filing to a non-case related submission'.
A63: Request for Extension (30 days or Less)
A64: If you will not be able to file your annual report by the April 15th deadline, you must request an extension on or before April 15th.
A65: All annual report extension requests must be on company letterhead and signed by an officer of the company or on the form provided on the PSC website (www.psc.mo.gov/forms) and signed electronically by a company representative. A contact e-mail address is required for approval or rejection of the request
A66: Follow the instructions for filing an annual report with these modifications.
A67: • Type of Submission - Select Annual Report (MO PSC) Extension Request. • Comments - Type in 2012 Annual Report Extension Request. • Under “Browse”, attach your documentation for requesting an extension.
A68: Once your submission is complete, you will be assigned a non-case related tracking number (BARE-2013-xxxx). Please retain this number for your records.
A69: Additional instructions can be found under the blue ‘Help’ button in EFIS on how to:
A70: • Access EFIS. • Log on to EFIS. • Obtain a user ID and password. • Reset my password. • File an annual report, statement of revenue, or other non-case related submission. • Make a subsequent filing to a non-case related submission.
A73: -Instructions Page V-

Sheet Detailed Instructions
A1: DETAILED FORM INSTRUCTIONS
A3: This form should be used by companies that have fewer than 8,000 customers.
A4: In examining the report form you will note there are various references requiring water information and sewer information on the same page.
A6: If you have water operations only, you should complete all information for water utilities. Any requested information for sewer data should be clearly marked by you as Not Applicable (e.g., N.A.).
A8: If you have sewer operations only, you should complete all information requested for sewer utilities. Any requested information for water data should be clearly marked by you as Not Applicable (e.g., N.A.).
A10: If you are a joint utility in that you have both water and sewer operations, you shall fill out all parts of all pages completely to the best of your ability and belief utilizing the available information. You will note that all pages on Lines 1 and 2 require the year of the report and the company name. This must be completed on all pages.
A12: If this document has been prepared by a third-party preparer, it is the responsibility of the company personnel attesting to the accuracy of document to review the document before submission to the Missouri Public Service Commission.
A14: INSTRUCTIONS for PAGE 1
A15: On Line 2, provide the full company name as it appears on your certificate of convenience and necessity.
A16: On Lines 3, provide the company street address. On Line 4, provide the mailing address if different than Line 3.
A17: On Line 5, provide the company phone number and the e-mail address of the regulatory contact. If an e-mail address is not available please designate with "n/a".
A18: On Lines 6 through 15, provide names, addresses, phone numbers and e-mail addresses of any persons who can be contacted concerning information contained in this report.
A19: On Lines 13 through 17, provide names, addresses, phone numbers and e-mail addresses of any persons who can be contacted concerning plant operations.
A20: On Lines 16 through 21, please enter the Company Revenues indicated. If using the Excel version, the Missouri Jurisdictional Revenues will automatically fill from pages W-2 and S-2.
A22: INSTRUCTIONS for PAGE 2
A23: On Line 2, provide the full company name as it appears on your certificate of convenience and necessity.
A24: On Lines 3 through 7, provide for each class and/or series of common and/or preferred stock the total number of shares authorized by charter, the par or stated value per share and the total number of shares issued.
A25: On Lines 8 through 15, provide the names, addresses and number of votes resulting from stock ownership as of December 31. If any such holder held the stock in trust, state the nature of the trust and the beneficial owner.
A26: On Line 16, provide total number of votes held by the names provided in lines 8 through 15.
A27: On Line 17, provide the total number of votes of all securities with voting rights.
A28: On Lines 18 - 23, provide the title and names of the officers of the company at the end of the reporting year.
A29: On Line 21 and 22, check all boxes for which the company is current.
A30: On Line 23, provide the case number and effective date of the last approved rate request case with the Commission.
A31: On Lines 27 and 28, check all boxes for which the company has filed and is current on the appropriate paperwork and payments.
A32: On Line 29, provide the most recent rate increase request case number and effective date of approval.
A33: -Instructions Page VI-
A34: INSTRUCTIONS for PAGE 3
A35: On Line 2, provide the full company name as it appears on your certificate of convenience and necessity.
A36: Describe all transactions occurring during the year that will have a major effect on operations.
A37: These transactions may be rate changes, the replacement of major equipment or any other abnormal cash expenditure amounting to $250 or more. Please note that if the expenditure is of a normal and recurring nature (i.e., monthly electric bills), it should not be classified as an abnormal item.
A39: INSTRUCTIONS for PAGE 4
A40: The dollar amount for Lines 3, 4, 6, 10, 11 and 13 should be brought forward from the appropriate page and line as indicated.
A41: Construction Work in Progress: Shall include the total amount of work for utility plant in process of construction but not ready for service at the end of the year.
A42: Plant Held for Future Use: Shall include the original cost of property owned and held for future use under a definite plan for use.
A43: Plant Acquisition Adjustment: Shall include the purchase price of any plant purchased less the original cost, estimated if not known, less any depreciation reserve.
A45: INSTRUCTIONS for PAGE 5
A46: The dollar amount for Lines 11, 12, 16 and 17 should be brought forward from the appropriate page and line as indicated.
A47: Customer Deposits: Shall include all deposits with the utility by customers as security for payment of bills.
A48: Advances for Construction: Shall include advances by any applicant for construction that is to be refunded either in part or completely.
A49: Contributions in Aid of Construction (CIAC): Shall include any donation or contribution in cash or services, or property from any company, individual, agency or others for construction purposes. CIAC shall include connection fees for new service. All supporting entries shall be kept so that the utility can furnish information regarding the purpose of each donation, and the amount of the donation. (NOTE: There shall not be any advances for construction that are to be repaid in part or completely included in this account except if not returned by the time specified in the utilities tariff.)
A51: NOTE: TOTAL ASSETS FROM PAGE 4 MUST BALANCE WITH TOTAL EQUITY AND LIABILITIES FROM PAGE 5
A54: INSTRUCTIONS for PAGE 6
A55: On Page 6, provide information for all customer sales determined to be uncollectible. You should identify the customer, the methods used to attempt collection, the amount and why it is uncollectible (i.e., customer filed bankruptcy, left town, etc.). This uncollectible amount is an expense to be recorded on the Income Statement (Page W-1 and/ or S-1).
A57: INSTRUCTIONS for PAGE 7
A58: On Page 7, provide information regarding payroll. Provide names, titles and salaries of all officers and employees. Provide total compensation paid to each during the year including bonuses and other allowances. Identify the total compensation as chargeable to water expense, sewer expense or construction. Also, identify any employee who did not receive any compensation during the year.
A60: INSTRUCTIONS for PAGE 8
A61: On Page 8, provide information regarding professional services the utility company received. Report all information concerning rate, management, construction, engineering, research, financial, valuation, legal, accounting, purchasing, advertising, labor relations, public relations, or other similar professional services rendered the respondent under written or verbal arrangements, for which total payments during the year to any corporation, partnership, individual (other than for services as an employee), or organization of any kind whatsoever.
A62: -Instructions Page VII-
A63: INSTRUCTIONS for PAGE 9
A64: On Page 9, provide information regarding contributions in aid of construction and the amortization of contributions in aid of construction. This account shall include donations or contributions in cash, services, or property for construction purposes, including connection fees for new service. The records supporting the entries to this account shall be so kept that the utility can furnish information as to the purpose of each donation, the conditions, if any, upon which it was made, the amount of each donation, and the amount applicable to each utility department. The credits (deductions) to this account shall not be transferred to any other account without the approval of the Commission.
A65: Lines 3 and 4 require input from last year's annual report page 9.
A66: Line 4 is the recording of new contributions for this year.
A67: Line 11 depends on the method your company uses for CIAC amortization. If your company uses the "distributed" method as described below, no retirement entries for CIAC should appear in line 11, (leave them blank).
A68: For retirement purposes, Contributions in Aid of Construction (CIAC) are amortized at the same rate as the depreciation rates set for the plant equipment. There are two methods as follows:
A69: 1. Attached Method: This method is the keeping of continuous property records such that the contributions are kept “attached” to the original equipment contributed. CIAC is amortized and retired at the same depreciation rate and retirement dates as the equipment which it is “attached” to. For this method complete the table with Line 25 through Line 27.
A70: 2. Distributed Method: Most small companies use this method. This method results in no CIAC retirement entries on line 11. The “distributed” method is to treat each contribution as a dollar amount that is equally distributed to all plant in service. Under this method, the annual CIAC amortization is a portion of the total plant depreciation expense. The ratio used to calculate this portion is the end of year CIAC balance divided by the end of year total plant in service. The CIAC amortization is simply the total plant depreciation expense multiplied by the ratio of CIAC to Total Plant. The annual amortization is added to the sum of all prior accumulated amortization until the total equals the original amount of all contributions. At this point the process is stopped and both the total CIAC and the accumulated amortization are reset to zero. For this method, complete the table containing Line 18 through Line 24.
A72: INSTRUCTIONS for PAGE 10
A73: On Page 10, provide all required information concerning interest expense, notes payable, bonds, bank loans and other financial debts that existed during the year. For each debt on which interest was paid during the year provide the name and address of the lender, the date of maturity, the loan balance, the interest rate on the loan, and the amount of interest paid. The amount of interest paid should be assigned to water utility expense and/or sewer utility expense based upon which utility was responsible for the loan.
A75: INSTRUCTIONS for PAGE 11
A76: On Page 11, provide descriptions, quantities and dollar costs of materials and supplies in inventory. These items may be pipe, wire, gasoline, diesel, etc. You should identify the cost and assign the cost to either water or sewer.
A78: INSTRUCTIONS for PAGES W-1, W-2, W-3 and/or S-1, S-2, S-3
A79: On Pages W-1, W-2, W-3 and/or S-1, S-2, S-3, provide information regarding all billed revenues, expenses, customer numbers and gallon sales.
A81: INSTRUCTIONS for PAGE W-4
A82: On Page W-4, provide information regarding quantities of water from each source of supply that entered the system. On Line 21, provide data regarding the maximum and minimum quantities of water supplied in any one day. On Line 22, provide the range of pressures that exist at the highest point of the system. On Lines 23 thru 26, provide information regarding any sale of water for resale.
A83: -Instructions Page VIII-
A84: INSTRUCTIONS for PAGES W-5, W-6 and/or S-4, S-5
A85: On Pages W-5, W-6 and/or S-4, S-5, provide information regarding water and/or sewer utility plant-in-service, depreciation expense and depreciation reserve. The account numbers shown in column (b) are defined in the Uniform System Of Accounts (USOA). The definitions describe what type of plant equipment is included in each account number. For each company, a USOA CLASS, a set of account numbers, and a set of depreciation rates are assigned by the PSC. These assignments for use by your company should be specified in a Depreciation Rate Schedule included as part of your company's last certificate or rate case final order. If you do not have this schedule, call the PSC and ask to speak to someone in the Engineering and Management Services Department
A86: Columns (c), (d), (e) and (f) require original installed cost of plant and equipment placed in service. If a replacement of plant occurs, such as a pump change-out or trading in a truck, then column (d) should show the full installed cost of the new item. In retirement column (e), record the original installed cost (from Plant Property Records), of the item which was replaced (removed). These entries should be supported by books and records, which identify the property and its location. The Balance at End of Year, column (f) equals columns (c) plus (d) minus (e).
A87: Depreciation expense column (h) is computed using the Balance at End of Year column (f), --- or mid-year or mid-month convention used by your company. Record in column (g) the depreciation rate used, (from you company's PSC Depreciation Rate Schedule). Column (i) is the carry forward of depreciation reserve from last years annual report. Book Cost of Plant Retired column (j) should be the same as Retirements During the Year column (e). Column (k) should reflect cost incurred to remove the plant which was retired. Column (l) should reflect any money received from the sale or trade-in of the equipment removed or replaced. Reserve balance at End of Year column (n) equals (h) plus (i) minus (j) minus (k) plus (l) plus (m).
A88: ***SAVE A COPY FOR NEXT YEARS BEGINNING BALANCES****
A90: INSTRUCTIONS for PAGE W-7
A91: On Page W-7, provide historical and statistical information regarding water pumps and wells.
A93: INSTRUCTIONS for PAGE W-8
A94: On Page W-8, provide historical and statistical information regarding water meters, meter settings and storage facilities.
A96: INSTRUCTIONS for PAGE W-9
A97: On Page W-9, provide historical information regarding the feet of water mains and number of service lines by size and type.
A99: INSTRUCTIONS for PAGE S-6
A100: On Page S-6, provide historical and statistical information regarding sewer treatment facilities, lift stations and feet of collecting sewers by size and type.
A102: '-Instructions Page IX-

Sheet Page 1
A1: 1 | B1: For the calendar year of January 1 - December 31, | J1: =IF(Cover!D13>0, Cover!D13, "") -> 2012
A2: 2 | B2: Company Name: | C2: =IF(Cover!A1>0, Cover!A1, "") -> 
B4: Parent Company Name: | C4: Southtown Utilties Company, Inc.
B5: (if applicable)
A6: 3 | B6: Company Street Address: | C6: 4746 S. 131st Rd
A8: 4 | B8: Company Mailing Address: | C8: PO Box 178, Bolivar, MO 65613
A10: 5 | B10: Company Phone Number: | C10: 417-326-4424 | G10: Company E-mail Address: | H10: rondar@windstream.net
B11: Name, address, phone number and e-mail of person(s) to contact concerning information contained in this report:
A12: 6 | B12: Ronda Riden | F12: Richard Fink
B13: Name | F13: Name
A14: =SUM(A12+1) -> 7 | B14: PO Box 178 | F14: PO Box 178
B15: Mailing Address | F15: Mailing Address
A16: 7a | B16: 4746 S. 131st Rd | F16: 4746 S. 131st Rd
B17: Street Address | F17: Street Address
A18: 8 | B18: Bolivar | C18: MO | D18: 65613 | F18: Bolivar | H18: MO | J18: 65613
B19: City | C19: State | D19: Zip | F19: City | H19: State | J19: Zip
A20: 9 | B20: 417-326-4424 | F20: 417-326-4424
B21: Telephone Number | F21: Telephone Number
A22: 10 | B22: rondar@windstream.net | F22: none
B23: E-mail Address | F23: E-mail Address
B25: Please list the name, address, phone number and e-mail address of the primary licensed operator to contact concerning water plant operations: | F25: Please list the name, address, phone number and e-mail address of the primary licensed operator to contact concerning sewer plant operations:
A26: 11 | B26: Larry D. Jenkins | F26: Larry D. Jenkins
B27: Name | F27: Name
A28: 12 | B28: PO Box 178 | F28: PO Box 178
B29: Mailing Address | F29: Mailing Address
A30: 12a
B31: Street Address | F31: Street Address
A32: 13 | B32: Bolivar | C32: MO | D32: 65613 | F32: Bolivar | H32: MO | J32: 65613
B33: City | C33: State | D33: Zip | F33: City | H33: State | J33: Zip
A34: 14 | B34: 417-326-4424 | F34: 417-326-4424
B35: Telephone Number | F35: Telephone Number
A36: 15
B37: E-mail Address | F37: E-mail Address
A38: 16 | B38: CN4432 | F38: CN4432
B39: Operator License Number | F39: Operator License Number
B40: Please provide the total company and gross intrastate operating revenues (i.e. Missouri Jurisdictional) Revenues
B41: for the Calendar Year: | C41: =IF(Cover!D13>0, Cover!D13, "") -> 2012
B42: Water Revenues | F42: ** | G42: MO Jurisdictional | H42: ** | I42: ** | J42: Total Company | K42: **
A43: =A38+1 -> 17 | B43: Operating Revenues from Tariffed Services | G43: ='Page W-2'!G15+'Page W-2'!G23 -> 38567.25 | J43: 38567.25
A44: =A43+1 -> 18 | B44: Other Revenues | G44: =SUM('Page W-2'!G31) -> 4850 | J44: 4850
A45: =A44+1 -> 19 | B45: TOTAL REVENUES (Page W-2, line 24) | G45: =SUM(G43:G44) -> 43417.25 | J45: =SUM(J43:J44) -> 43417.25
B46: Total MO Jurisdictional Revenue (line 19 above) should match Statement of Revenue (MoPSC Assessment).
B48: Sewer Revenues | F48: ** | G48: MO Jurisdictional | H48: ** | I48: ** | J48: Total Company | K48: **
A49: =A45+1 -> 20 | B49: Operating Revenues from Tariffed Services | G49: =SUM('Page S-2'!G20+'Page S-2'!G15) -> 38024.29 | J49: 38024.29
A50: =A49+1 -> 21 | B50: Other Revenues | G50: =SUM('Page S-2'!G28) -> 12751 | J50: 12751
A51: =A50+1 -> 22 | B51: TOTAL REVENUES (Page S-2, line 21) | G51: =SUM(G49:G50) -> 50775.29 | J51: =SUM(J49:J50) -> 50775.29
B52: Total MO Jurisdictional Revenue (line 22 above) should match Statement of Revenue (MoPSC Assessment).
B53: Indicates a link to another worksheet within workbook
B54: Indicates formula cell(s) | J54: (To be used when filing under seal.)
J80: Public
J81: Highly Confidential

Sheet Page 2
A1: 1 | G1: For the calendar year of January 1 - December 31, | H1: =IF(Cover!D13>0, Cover!D13, "") -> 2012
A2: 2 | C2: Company Name: | D2: =IF(Cover!A1>0, Cover!A1, "") -> 
B4: CAPITAL STOCK (COMMON AND DEFERRED)
B5: Class and Series of Stock (a) | E5: Number of Shares Authorized (b) | G5: Par or Stated Value Per Share (c) | H5: Number of Shares Issued (d)
A6: 3 | B6: Common | E6: 500 | G6: 1 | H6: 500
A7: 4
A8: 5
A9: 6
A10: 7
B12: SECURITY HOLDERS AND VOTING POWERS
B13: Report below the NAMES and ADDRESS of the ten stockholders who, at the end of the year, had the greatest voting powers in the respondent. AND STATE THE NUMBER OF VOTES each would have had a right to cast on that date. If any such holder held in trust, give the nature of the trust and the beneficial owner. Show also total votes of ALL securities with voting powers.
B15: Names and Addresses (a) | H15: Number of Votes (b)
A16: 8 | B16: Richard Fink, PO Box 406, Bolivar, MO 65613 | H16: 1
A17: 9 | B17: Earl Spiegel, PO Box 178, Bolivar, MO 65613 | H17: 1
A18: 10
A19: 11
A20: 12
A21: 13
A22: 14
A23: 15
A24: 16 | B24: Total Number of Votes Held by Above | H24: =IF(SUM(H16:H23)>0, SUM(H16:H23), "") -> 2
A25: 17 | B25: Total Number of Votes of all Securities with Voting Powers
B27: Identify the principal or general officers of the company at the end of the year. Please include an additional sheet, if enough space is not provided on this page, to completely provide the requested information.
B28: Title of General Officer | F28: Name of Person Holding Office
A29: 18 | B29: President | F29: Richard Fink
A30: 19 | B30: Vice-President | F30: Earl Spiegel
A31: 20 | B31: Sec/Tres | F31: Ronda Riden
A32: 21
A33: 22
A34: 23
B36: Please check all of the following for which the company has filed / is current:
A37: 27 | B37: x | C37: Secretary of State Requirements | E37: x | F37: Federal Tax Return
A39: 28 | B39: x | C39: Department of Natural Resources Permits | E39: x | F39: State Tax Return
A41: 29 | B41: DNR Permit Number: | D41: MO0121924 | E41: (If you hold more than one permit, please attach list.)
A42: 30 | B42: Original DNR Permit Date: | D42: 2003-03-13
A43: 31 | B43: DNR Permit Expiration Date: | D43: 2013-03-12
B45: Please list your most recent rate increase request Case No(s). and effective date(s).
A46: 32 | B46: Water Case No.: | D46: none | F46: Effective Date: | G46: none
A47: 33 | B47: Sewer Case No.: | D47: none | F47: Effective Date: | G47: none
C50: Indicates formula cell(s) | H50: (To be used when filing under seal.)
E75: Public
E76: Highly Confidential

Sheet Page 3
A1: 1 | B1: For the calendar year of January 1 - December 31, | D1: =IF(Cover!D13>0, Cover!D13, "") -> 2012
B2: Company Name: | C2: =IF(Cover!A1>0, Cover!A1, "") -> 
A3: 2
B4: Describe MAJOR transactions occurring during the year which will have a major effect on operations, such as rate changes, replacement of equipment and other abnormal cash expenditures of $250 or more.
A5: 3 | B5: 2005 Chevrolet Pickup for operator to use during service of system, $9,250.00 12/4/12
A6: 4 | B6: Cotor Inc. Generator, 3 phase for WWTP, $3,100, 11/27/12
A7: 5 | B7: Paved driveway/parking are at WWTP, $1,069.75 12/19/12
A8: 6 | B8: Installed Blower - Reactor Tank Odor Control, $900.46, 1-9-2012
A9: 7 | B9: Replaced Check Valve #1 Booster Pump Well #2, $66.15, 6-11-2012
A10: 8 | B10: Control Panel S. 130th Rd Lift Station, $990.29, 12-17-2012
A11: 9
A12: 10
A13: 11
A14: 12
A15: 13
A16: 14
A17: 15
A18: 16
A19: 17
A20: 18
A21: 19
A22: 20
A23: 21
A24: 22
A25: 23
A26: 24
A27: 25
A28: 27
A29: 28
A30: 29
A31: 30

Sheet Page 4
A1: 1 | E1: For the calendar year of January 1 - December 31, | F1: =IF(Cover!D13>0, Cover!D13, "") -> 2012
A3: 2 | B3: Company Name: | C3: =IF(Cover!A1>0, Cover!A1, "") -> 
B5: NOTE: Please do not type over formulas. Totals will calculate automatically in this spreadsheet.
A7: BALANCE SHEET WATER AND SEWER OPERATIONS ASSETS
B9: Account Description (a) | E9: ** | F9: Amount (b) | G9: **
A10: 3 | B10: Water Plant In Service (From Pg. W-5) | F10: ='Page W-5'!I59 -> 581017.5
A11: 4 | B11: LESS: | C11: Water Depreciation Reserve (From Pg. W-6) | F11: ='Page W-6'!K59 -> 141222.65
A12: 5 | B12: Net Water Plant in Service (i.e., Water Plant In Service MINUS Water Depreciation Reserve) | F12: =SUM(F10-F11) -> 439794.85
A13: 6 | B13: Water Materials and Supplies (From Pg. 11) | F13: ='Page 11'!E30 -> 44733.27
A14: 7 | B14: Water Construction Work in Progress | F14: 0
A15: 8 | B15: Water Plant Held for Future Use (List explanation on Page 4a)
A16: 9 | B16: Water Plant Acquisition Adjustment
A17: 10 | B17: Sewer Plant in Service (From Pg. S-4) | F17: ='Page S-4'!I48 -> 432692.96
A18: 11 | B18: LESS: | C18: Sewer Depreciation Reserve (From Pg. S-5) | F18: ='Page S-5'!K49 -> 48270.61
A19: 12 | B19: Net Sewer Plant in Service (i.e., Sewer Plant in Service MINUS Sewer Depreciation Reserve) | F19: =SUM(F17-F18) -> 384422.35
A20: 13 | B20: Sewer Materials and Supplies (From Pg. 11) | F20: ='Page 11'!G30 -> 2836.47
A21: 14 | B21: Sewer Construction Work in Progress | F21: 0
A22: 15 | B22: Sewer Plant Held for Future Use (List explanation on Page 4a)
A23: 16 | B23: Sewer Plant Acquisition Adjustment
A24: 17 | B24: Other Plant (List explanation on Page 4a)
A25: 18 | B25: Cash
A26: 19 | B26: Other Assets (Accounts Receivable, etc.) (List explanation on Page 4a)
A27: 20 | B27: Total Assets* | F27: =SUM(F12:F16)+SUM(F19:F26) -> 871786.94
A28: * | B28: Total Assets should balance with Total Equity and Liabilities on Page 5 (see instructions). Difference between Equity & Liabilities and Assets (from Pg 5).
B29: Indicates a link to another worksheet within workbook
B30: Indicates formula cell(s) | F30: (To be used when filing under seal.)
D47: Public
D48: Highly Confidential

Sheet Page 4a
A1: 1 | D1: For the calendar year of January 1 - December 31, | E1: =IF(Cover!D13>0, Cover!D13,"") -> 2012
A2: 2 | B2: Company Name: | C2: =IF(Cover!A1>0, Cover!A1, "") -> 
A4: DETAILED EXPLANATION OF ITEMS
A6: 3 | B6: Page 4, Line 8 | C6: Water Plant Held for Future Use | D6: ='Page 4'!F15 -> 0
A7: ** | B7: Description | E7: Amount | F7: **
E8: 0
B13: Total (should match amount on Page 4, Line 8) | E13: =SUM(E8:E12) -> 0
A15: 4 | B15: Page 4, Line 15 | C15: Sewer Plant Held for Future Use | D15: ='Page 4'!F22 -> 0
A16: ** | B16: Description | E16: Amount | F16: **
E17: 0
B22: Total (should match amount on Page 4, Line 15) | E22: =SUM(E17:E21) -> 0
A24: 5 | B24: Page 4, Line 17 | C24: Other Plant | D24: ='Page 4'!F24 -> 0
A25: ** | B25: Description | E25: Amount | F25: **
E26: 0
B31: Total (should match amount on Page 4, Line 17) | E31: =SUM(E26:E30) -> 0
A33: 5 | B33: Page 4, Line 19 | C33: Other Assets | D33: ='Page 4'!F26 -> 0
A34: ** | B34: Description | E34: Amount | F34: **
E35: 0
B40: Total (should match amount on Page 4, Line 19) | E40: =SUM(E35:E39) -> 0
B42: Indicates a link to another worksheet within workbook
B43: Indicates formula cell(s) | E43: (To be used when filing under seal.)
D60: Public
D61: Highly Confidential

Sheet Page 5
A1: 1 | D1: For the calendar year of January 1 - December 31, | E1: =IF(Cover!D13>0, Cover!D13, "") -> 2012
A2: 2 | B2: Company Name: | C2: =IF(Cover!A1>0, Cover!A1, "") -> 
B4: NOTE: Please do not type over formulas. Totals will calculate automatically in this spreadsheet.
A6: BALANCE SHEET WATER AND SEWER OPERATIONS EQUITY AND LIABILITIES
B8: Account Description (a) | D8: ** | E8: Amount (b) | F8: **
A9: 3 | B9: Capital Stock
A10: 4 | B10: Retained Earnings | E10: -183500.91
A11: 5 | B11: Long-Term Debt to Affiliates (owners, other owner controlled companies, etc.) | E11: 100000
A12: 6 | B12: Short-Term Debt to Affiliates (owners, other owner controlled companies, etc.) | E12: 53256.98
A13: 7 | B13: Long-Term Debt (banks, etc.)
A14: 8 | B14: Short-Term Debt (banks, etc.)
A15: 9 | B15: Water Customer Deposits | E15: 0
A16: 10 | B16: Water Advances for Construction
A17: 11 | B17: Water CIAC (From Pg. 9) | E17: ='Page 9'!D21 -> 483827.28
A18: 12 | B18: LESS: | C18: Water Amortization of CIAC (From Pg. 9) | E18: ='Page 9'!D34 -> 17673.75314
A19: 13 | B19: Net Water CIAC (i.e., Water CIAC MINUS Water Amortization of CIAC) | E19: =E17-E18 -> 466153.5269
A20: 14 | B20: Sewer Customer Deposits
A21: 15 | B21: Sewer Advances for Construction
A22: 16 | B22: Sewer CIAC (From Pg. 9) | E22: ='Page 9'!E21 -> 449416.37
A23: 17 | B23: LESS: | E23: ='Page 9'!E34 -> 13539.02604
A24: 18 | B24: Net Sewer CIAC (i.e., Sewer CIAC Minus Sewer Amortization of CIAC) | E24: =E22-E23 -> 435877.344
A25: 19 | B25: Deferred Taxes - ITC
A26: 20 | B26: Deferred Taxes - Other (List explanation on Page 5a)
A27: 21 | B27: Other Liabilities (Accounts Payable, etc.) (List explanation on Page 5a)
A28: 22 | B28: Total Equity and Liabilities* | E28: =SUM(E9:E16,E19,E20:E21,E24,E25:E27) -> 871786.9408
B29: * Total Equity and Liabilities should balance with Total Assets on Page 4 (see instructions). Difference between Equity & Liabilities and Assets (from Pg 4).
B30: Indicates a link to another worksheet within workbook
B31: Indicates formula cell(s) | E31: (To be used when filing under seal.)
E61: Public
E62: Highly Confidential

Sheet Page 5a
A1: 1 | D1: For the calendar year of January 1 - December 31, | E1: =IF(Cover!D13>0, Cover!D13,"") -> 2012
A2: 2 | B2: Company Name: | C2: =IF(Cover!A1>0, Cover!A1, "") -> 
A4: DETAILED EXPLANATION OF ITEMS
A6: 3 | B6: Page 5, Line 20 | C6: Deferred Taxes - Other | D6: ='Page 5'!E26 -> 0
A7: ** | B7: Description | E7: Amount | F7: **
B8: none | E8: 0
B13: Total (should match amount on Page 5, Line 20) | E13: =SUM(E8:E12) -> 0
A15: 4 | B15: Page 5, Line 21 | C15: Other Liabilities (Accounts Payable, etc.) | D15: ='Page 5'!E27 -> 0
A16: ** | B16: Description | E16: Amount | F16: **
B17: none | E17: 0
B22: Total (should match amount on Page 5, Line 21) | E22: =SUM(E17:E21) -> 0
B42: Indicates a link to another worksheet within workbook
B43: Indicates formula cell(s) | E43: (To be used when filing under seal.)
D60: Public
D61: Highly Confidential

Sheet Page 6
A1: 1 | E1: For the calendar year of January 1 - December 31, | F1: =IF(Cover!D13>0, Cover!D13, "") -> 2012
A2: 2 | B2: Company Name: | C2: =IF(Cover!A1>0, Cover!A1, " ") -> 
B4: SCHEDULE OF UNCOLLECTIBLE ACCOUNTS
B6: Account No. (a) | C6: Describe customer account and methods used to attempt collection. Also, state why account is deemed uncollectible (bankruptcy, etc.) (b) | E6: Amount Written Off
D7: ** | E7: Water Utility (c) | F7: Sewer Utility (d) | G7: **
A8: 3 | B8: None | C8: None | E8: 0 | F8: 0
A9: 4
A10: 5
A11: 6
A12: 7
A13: 8
A14: 9
A15: 10
A16: 11
A17: 12
A18: 13
A19: 14
A20: 15
A21: 16
A22: 17
A23: 18
A24: 19
A25: 20
A26: 21
A27: 22
A28: 23
A29: 24
A30: 25
A31: 26
A32: 27
A33: 28
A34: 29
A35: 30
A36: 31 | C36: Total | E36: =SUM(E8:E35) -> 0 | F36: =SUM(F8:F35) -> 0
E37: (Total to Pg. W-1) | F37: (Total to Pg. S-1)
B40: Indicates formula cell(s) | E40: (To be used when filing under seal.)
E55: Public
E56: Highly Confidential

Sheet Page 7
B1: PAYROLL INFORMATION | H1: 2 | I1: 1
H2: Company Name: | I2: For the calendar year of January 1 - December 31,
B3: INSTRUCTIONS: Please provide names, titles and salaries for all officers and employees. Show total compensation paid to each during the year. Include all amounts including bonuses and other allowances. Enter "0" or none where applicable. Provide explanations where necessary. Use additional sheets if necessary.
B5: Name and Title (a) | C5: Payroll Charged To:
C6: Total Utility Compensation (b) | D6: Water Expense (c) | E6: Sewer Expense (d) | F6: Capitalized Payroll (e) | H6: =IF(Cover!A1>0, Cover!A1, "") -> 
A7: 3 | B7: Richard Fink, President | C7: 0 | D7: 0 | E7: 0 | F7: 0
A8: 4 | B8: Earl Spiegel, Vice-President | C8: 0 | D8: 0 | E8: 0 | F8: 0
A9: 5 | B9: Ronda Riden, Sec/Tres | C9: 0 | D9: 0 | E9: 0 | F9: 0
A10: 6 | B10: Larry D. Jenkins | C10: 13821 | D10: 6910.5 | E10: 6910.5
A11: 7 | B11: Bill Crouch | C11: 13602.37 | D11: 6801.19 | E11: 6801.18
A12: 8
A13: 9
A14: 10
A15: 11
A16: 12
A17: 13
A18: 14
A19: 15
A20: 16
A21: 17
A22: 18
A23: 19 | B23: Total | C23: =SUM(C7:C22) -> 27423.37 | D23: =SUM(D7:D22) -> 13711.69 | E23: =SUM(E7:E22) -> 13711.68 | F23: =SUM(F7:F22) -> 0
A24: Page 7 | D24: (Total to Page W-1) | E24: (Total to Page S-1) | I24: =IF(Cover!D13>0, Cover!D13, "") -> 2012
B27: Indicates formula cell(s) | E27: (To be used when filing under seal.)
E42: Public
E43: Highly Confidential

Sheet Page 8
B1: PAYMENTS FOR SERVICES RENDERED BY OTHER THAN EMPLOYEES | H1: 2 | I1: 1
H2: Company Name: | I2: For the calendar year of January 1 - December 31,
B3: INSTRUCTIONS: Report below all information concerning rate, management, construction, engineering, research, financial, valuation, legal, accounting, purchasing, advertising, labor relations, public relations, or other similar professional services rendered the respondent under written or verbal arrangements, for which total payments during the year to any corporation, partnership, individual (other than for services as an employee) or organization of any kind whatsoever. Use additional sheets if necessary.
B5: Name of Recipient and Description of Service (a) | C5: Amount of Payments:
C6: Water | E6: Sewer | H6: =IF(Cover!A1>0, Cover!A1, "") -> 
C7: Expensed (b) | D7: Capitalized (c) | E7: Expensed (d) | F7: Capitalized (e)
A8: 3 | B8: George Williams, CPA | C8: 212.5 | E8: 212.5
A9: 4 | B9: Douglas, Haun & Heidmann (attorney) | C9: 105.5 | E9: 105.5
A10: 5 | B10: MoDNR (Sewer Plant Permit Fee) | C10: 0 | E10: 3000
A11: 6
A12: 7
A13: 8
A14: 9
A15: 10
A16: 11
A17: 12
A18: 13
A19: 14
A20: 15
A21: 16
A22: 17
A23: 18
A24: 19 | B24: Total | C24: =SUM(C8:C23) -> 318 | D24: =SUM(D8:D23) -> 0 | E24: =SUM(E8:E23) -> 3318 | F24: =SUM(F8:F23) -> 0
A25: Page 8 | C25: (Total to Page W-1) | E25: (Total to Page S-1) | I25: =IF(Cover!D13>0, Cover!D13, "") -> 2012
B28: Indicates formula cell(s) | E28: (To be used when filing under seal.)
E43: Public
E44: Highly Confidential

Sheet Page 9
A1: 1 | D1: For the calendar year of January 1 - December 31, | E1: =IF(Cover!D13>0, Cover!D13,"") -> 2012
A2: 2 | B2: Company Name: | C2: =IF(Cover!A1>0, Cover!A1, "") -> 
B4: CONTRIBUTIONS IN AID OF CONSTRUCTION
B5: INSTRUCTIONS: This account shall include donations or contributions in cash, services, or property for construction purposes. The records supporting the entries to this account shall be so kept that the utility can furnish information as to the purpose of each donation, the conditions, if any, upon which it was made, the amount of each donation, and the amount applicable to each utility department. The credits (deductions) to this account shall not be transferred to any other account without the approval of the Commission.
B7: (a) | D7: Water (b) | E7: Sewer (c)
A8: 3 | B8: Balance at Beginning of Year | D8: 483827.28 | E8: 449416.37
A9: 4 | B9: PLUS: | C9: Additions During the Year (Please provide a detailed explanation.)
A10: 5
A11: 6
A12: 7
A13: 8
A14: 10 | B14: Total Additions | D14: =SUM(D9:D13) -> 0 | E14: =SUM(E9:E13) -> 0
A15: 11 | B15: LESS: | C15: Deductions During the Year (Please provide a detailed explanation.)
A16: 12 | C16: None
A17: 13
A18: 14 | B18: Retire and cap off service connection, but no connection fee money returned = no entry here
A19: 15
A20: 16 | B20: Total Deductions | D20: =SUM(D15:E19) -> 0 | E20: =SUM(E15:F19) -> 0
A21: 17 | B21: Balance at End of Year | D21: =D8+D14-D20 -> 483827.28 | E21: =E8+E14-E20 -> 449416.37
D22: (Total to Pg. 5) | E22: (Total to Pg. 5)
B24: AMORTIZATION OF CONTRIBUTIONS IN AID OF CONSTRUCTION
B25: (Please identify as Account Number 271A)
B26: Distribution Method
B27: (a) | D27: Water (b) | E27: Sewer (c)
A28: 18 | B28: Balance at First of Year (Total of Amortization not Total of CIAC line 3)
A29: 19 | B29: Total Contributions in Aid at End of Year (see above) | D29: =D21 -> 483827.28 | E29: =E21 -> 449416.37
A30: 20 | B30: Total Plant in Service at End of Year (From Page W-5 or S-4) | D30: ='Page W-5'!I59 -> 581017.5 | E30: ='Page S-4'!I48 -> 432692.96
A31: 21 | B31: Percentage Contributions to Plant | D31: =IF(D30=0, "0.00%", D29/D30) -> 0.832724109 | E31: =IF(E30=0, "0.00%",E29/E30) -> 1.0386496
A32: 22 | B32: Total Depreciation Expense (From Page W-6 or S-5) | D32: ='Page W-6'!E59 -> 21224.02 | E32: ='Page S-5'!E49 -> 13035.22
A33: 23 | B33: Total Amortization of Contributions | D33: =D31*D32 -> 17673.75314 | E33: =E31*E32 -> 13539.02604
A34: 24 | B34: Balance at End of Year | D34: =D28+D33 -> 17673.75314 | E34: =E28+E33 -> 13539.02604
D35: (Total to Pg. 5) | E35: (Total to Pg. 5)
B36: OR
B37: Attached Method
B38: (a) | D38: Water (b) | E38: Sewer (c)
A39: 25 | B39: Balance at First of Year (Total of Amortization not Total of CIAC line 3)
A40: 26 | B40: Total Amortization of Contributions | D40: 0 | E40: 0
A41: 27 | B41: Balance at End of Year | D41: =SUM(D39:E40) -> 0 | E41: =SUM(E39:F40) -> 0
D42: (Total to Pg. 5) | E42: (Total to Pg. 5)
B44: Indicates a link to another worksheet within workbook
B45: Indicates formula cell(s) | D45: (To be used when filing under seal.)
D60: Public
D61: Highly Confidential

Sheet Page 10
B1: INTEREST EXPENSE, NOTES PAYABLE, BONDS, BANK LOANS AND OTHER DEBTS | M1: 2 | N1: 1
M2: Company Name:
B3: INSTRUCTIONS: Please report information for each separate item of debt. Show principal amount to which each interest rate applies. Include all items on which interest was paid during the year. Use additional sheets if necessary.
B4: Description of Obligation (Include Name and Address of Each Lender) (a) | C4: Origination Date (b) | D4: Frequency of Payments (Semi-Monthly, Monthly, Quarterly, Annually, etc.) (c) | E4: Date of Maturity (d) | F4: Loan Amount (e) | G4: Interest Rate (f) | H4: Is Interest Rate Fixed or Variable? (g) | I4: Paid (h) | J4: Interest Charged To:
J5: Water Utility (i) | K5: Sewer Utility (j) | M5: =IF(Cover!A1>0, Cover!A1, "") -> 
A6: 3 | B6: Sewer Plant Phas 3 Addition | C6: 2008-02-01 | D6: Semi-Annual | E6: 2013-02-01 | F6: 100000 | G6: 0.06 | H6: fixed
A7: 4
A8: 5
A9: 6
A10: 7
A11: 8 | N11: For the calendar year of January 1 - December 31,
A12: 9
A13: 10
A14: 11
A15: 12
A16: 13
A17: 14
A18: 15
A19: 16
A20: 17
A21: 18
A22: 19
A23: 20
A24: 21 | B24: Total | F24: =SUM(F6:F23) -> 100000 | I24: =SUM(I6:I23) -> 0 | J24: =SUM(J6:J23) -> 0 | K24: =SUM(K6:K23) -> 0 | N24: =IF(Cover!D13>0,Cover!D13, "") -> 2012
J25: (Total to Pg. W-1) | K25: (Total to Pg. S-1)
A26: Page 10
A27: Page 10 | B27: 22. If the answer to column (g) is variable, please explain the method used for the interest rate calculation below with corresponding line number from above.
B30: Indicates formula cell(s)
I31: (To be used when filing under seal.)
I46: Public
I47: Highly Confidential

Sheet Page 11
A1: 1 | F1: For the calendar year of January 1 - December 31, | G1: =IF(Cover!D13>0, Cover!D13,"") -> 2012
A2: 2 | B2: Company Name: | C2: =IF(Cover!A1>0, Cover!A1, "") -> 
B4: SCHEDULE OF MATERIALS AND SUPPLIES AVAILABLE AT THE END OF THE YEAR
B6: Description of Items (Pipe, Meters, Fittings, Valves, Gas, etc.) (a) | D6: Water | F6: Sewer
D7: Quantity (b) | E7: Amount (c) | F7: Quantity (d) | G7: Amount (e)
A8: 3 | B8: 8" Class 200 | D8: 346' | E8: 2224.78
A9: 4 | B9: 6" Class 200 | D9: 40' | E9: 155.78
A10: 5 | B10: Brass Fittings | D10: 487 | E10: 19971.87
A11: 6 | B11: 1" Tubing | D11: 180' | E11: 77.4
A12: 7 | B12: 3/4" Tubing | D12: 100' | E12: 39
A13: 8 | B13: 1" Copper | D13: 8' | E13: 49.98
A14: 9 | B14: 3/4" Copper | D14: 120' | E14: 1076
A15: 10 | B15: PVC Sch 80 Fittings | D15: 153 | E15: 687.43
A16: 11 | B16: Water Meters | D16: 6 | E16: 404.88
A17: 12 | B17: Meter Pits and Lids | D17: 9 | E17: 538.21
A18: 13 | B18: 4" MJ Fittings | D18: 101 | E18: 3755.84
A19: 14 | B19: 6" MJ Fittings | D19: 98 | E19: 4495.94
A20: 15 | B20: 8" MJ Fittings | D20: 93 | E20: 11256.16
A21: 16 | B21: 8" SDR 35 | F21: 312' | G21: 1503.84
A22: 17 | B22: PVC Fittings | F22: 273 | G22: 1228.5
A23: 18 | B23: Primer | F23: 5 | G23: 65.45
A24: 19 | B24: Glue | F24: 4 | G24: 38.68
A25: 20
A26: 21
A27: 22
A28: 23
A29: 24
A30: 25 | B30: Total | D30: =SUM(D8:D29) -> 947 | E30: =SUM(E8:E29) -> 44733.27 | F30: =SUM(F8:F29) -> 282 | G30: =SUM(G8:G29) -> 2836.47
E31: (Total to Pg. 4) | G31: (Total to Pg. 4)
B34: Indicates formula cell(s) | E34: (To be used when filing under seal.)
E49: Public
E50: Highly Confidential

Sheet Page W-1
A1: 1 | D1: For the calendar year of January 1 - December 31, | E1: =IF(Cover!D13>0, Cover!D13, "") -> 2012
A3: 2 | B3: Company Name: | C3: =IF(Cover!A1>0, Cover!A1, "") -> 
B5: WATER OPERATING REVENUES, EXPENSES AND STATISTICS
B7: (a) | E7: Amount (b)
A8: 3 | B8: Total Operating Revenues (From Page W-2) | E8: ='Page W-2'!G32 -> 43417.25
B9: Operating Expenses
A10: 4 | B10: Salaries & Wages (From Page 7) | E10: =SUM('Page 7'!D23) -> 13711.69
A11: 5 | B11: Employee Pensions and Benefits | E11: 0
A12: 6 | B12: Purchased Water | E12: 0
A13: 7 | B13: Plant Operations Expenses (From Page W-3) | E13: ='Page W-3'!E17 -> 8028.57
A14: 8 | B14: Billing Expenses | E14: 673.86
A15: 9 | B15: Supplies and Expenses
A16: 10 | B16: Transportation Expenses | E16: 2853.51
A17: 11 | B17: Rent Expense (List explanation on Page W-1a) | E17: 0
A18: 12 | B18: Insurance Expense | E18: 2478.61
A19: 13 | B19: Outside Services Employed (i.e.., Legal, Accounting, etc.) (From Page 8) | E19: ='Page 8'!C24 -> 318
A20: 14 | B20: Regulatory Commission Expenses | E20: 837.69
A21: 15 | B21: Uncollectible Expenses (From Page 6) | E21: ='Page 6'!E36 -> 0
A22: 16 | B22: Depreciation Expense (From Page W-6) | E22: ='Page W-6'!E59 -> 21224.02
A23: 17 | B23: Amortization of Contributions in Aid of Construction (Page 9) | E23: =-('Page 9'!D33+'Page 9'!D40) -> -17673.75314
A24: 18 | B24: Amortization Expense
A25: 19 | B25: Tax Expenses (From Page W-3) | E25: ='Page W-3'!E27 -> 274.18
A26: 20 | B26: Interest Expense (From Page 10) | E26: ='Page 10'!J24 -> 0
A27: 21 | B27: Other Expenses (List explanation on Page W-1a) | E27: 374.87
A28: 22 | B28: Total Operating Expenses | E28: =SUM(E10:E27) -> 33101.24686
A29: 23 | B29: Net Income (Loss) (A negative number indicated by ( ) represents a loss.) | E29: =SUM(E8-E28) -> 10316.00314
B31: Indicates a link to another worksheet within workbook
B32: Indicates formula cell(s) | E32: (To be used when filing under seal.)
D47: Public
D48: Highly Confidential

Sheet Page W-1a
A1: 1 | D1: For the calendar year of January 1 - December 31, | E1: =IF(Cover!D13>0, Cover!D13,"") -> 2012
A2: 2 | B2: Company Name: | C2: =IF(Cover!A1>0, Cover!A1, "") -> 
A4: DETAILED EXPLANATION OF ITEMS
A6: 3 | B6: Page W-1, Line 11 | C6: Rent Expense | D6: ='Page W-1'!E17 -> 0
A7: ** | B7: Description | E7: Amount | F7: **
B13: Total (should match amount on Page W-1, Line 11) | E13: =SUM(E8:E12) -> 0
A15: 4 | B15: Page W-1, Line 21 | C15: Other Expenses | D15: ='Page W-1'!E27 -> 374.87
A16: ** | B16: Description | E16: Amount | F16: **
B17: Cell phone for operator | E17: 193.63
B18: Wal-mart - misc toilet items/paper towels | E18: 68.37
B19: C&C Farm Supply (batteries, rubber gloves, safety glasses, hoses) | E19: 44.9
B20: Cintas Fire Extinguisher renewals | E20: 67.97
B22: Total (should match amount on Page W-1, Line 21) | E22: =SUM(E17:E21) -> 374.87
B42: Indicates a link to another worksheet within workbook
B43: Indicates formula cell(s) | E43: (To be used when filing under seal.)
D60: Public
D61: Highly Confidential

Sheet Page W-2
A1: 1 | F1: For the calendar year of January 1 - December 31, | G1: =IF(Cover!D13>0,Cover!D13, "") -> 2012
A2: 2 | B2: Company Name: | C2: =IF(Cover!A1>0, Cover!A1, "") -> 
B4: WATER OPERATING REVENUES, EXPENSES AND STATISTICS (Continued)
B5: (Please indicate if metered amounts are in cubic feet measurements.)
B6: (a) | D6: No. of Customers | F6: Gallons Sold 000's Omitted (d) | G6: Revenue Amount (e)
D7: Beginning of Year (b) | E7: End of Year (c)
B8: Unmetered Sales of Water
A9: 3 | B9: Residential - Single Family | D9: 0 | E9: 0 | G9: 0
A10: 4 | B10: Residential - Apartments | D10: 0 | E10: 0 | G10: 0
A11: 5 | B11: Residential - Mobile Homes | D11: 0 | E11: 0 | G11: 0
A12: 6 | B12: Commercial | D12: 0 | E12: 0 | G12: 0
A13: 7 | B13: Other Sales to Public Authorities | D13: 0 | E13: 0 | G13: 0
A14: 8 | B14: Other (List explanation on page W-2a) | D14: 0 | E14: 0 | G14: 0
A15: 9 | B15: Total Unmetered Sales | D15: =SUM(D8:D14) -> 0 | E15: =SUM(E8:E14) -> 0 | G15: =SUM(G8:G14) -> 0
B16: Metered Sales of Water
A17: 10 | B17: 5/8" Meter | D17: 101 | E17: 113 | G17: 21297.52
A18: 11 | B18: 3/4" Meter | D18: 2 | E18: 4 | G18: 0
A19: 12 | B19: 1" Meter | D19: 2 | E19: 2 | G19: 913.01
A20: 13 | B20: 1 1/2" Meter | D20: 3 | E20: 3 | G20: 1166.83
A21: 14 | B21: 2" Meter | G21: 5898.17
A22: 15 | B22: Other (List explanation on page W-2a) | G22: 9291.72
A23: 16 | B23: Total Metered Sales | D23: =SUM(D17:D22) -> 108 | E23: =SUM(E17:E22) -> 122 | F23: =SUM(F17:F22) -> 0 | G23: =SUM(G16:G22) -> 38567.25
B24: Other Operating Revenues
A25: 17 | B25: Late Payment Fees | G25: 0
A26: 18 | B26: Inspection Fees | G26: 1250
A27: 19 | B27: Reconnect Fees | G27: 0
A28: 20 | B28: Rent Income | G28: 0
A29: 21 | B29: Income from Merchandising, Jobbing & Contract Work (List explanation on page W-2a) | G29: 3600
A30: 22 | B30: Other Revenue (List explanation on page W-2a)
A31: 23 | B31: Total Other Operating Revenues | G31: =SUM(G25:G30) -> 4850
A32: 24 | B32: Total Operating Revenues * | G32: =SUM(G15+G23+G31) -> 43417.25
G33: (Total to Pg. W-1)
A34: * | B34: Total Operating Revenues should match Statement of Revenue (MOPSC Assessment).
B35: Indicates a link to another worksheet within workbook
B36: Indicates formula cell(s) | F36: (To be used when filing under seal.)
F63: Public
F64: Highly Confidential

Sheet Page W-2a
A1: 1 | D1: For the calendar year of January 1 - December 31, | E1: =IF(Cover!D13>0, Cover!D13,"") -> 2012
A2: 2 | B2: Company Name: | C2: =IF(Cover!A1>0, Cover!A1, "") -> 
A4: DETAILED EXPLANATION OF ITEMS
A6: 3 | B6: Page W-2, Line 8 | C6: Other | D6: ='Page W-2'!G14 -> 0
A7: ** | B7: Description | E7: Amount | F7: **
B8: Not Applicable
B13: Total (should match amount on Page W-2, Line 8) | E13: =SUM(E8:E12) -> 0
A15: 4 | B15: Page W-2, Line 15 | C15: Other | D15: ='Page W-2'!G22 -> 9291.72
A16: ** | B16: Description | E16: Amount | F16: **
B17: Fire Hydrant Charges to Homeowners Association, per tariffs | E17: 9291.72
B22: Total (should match amount on Page W-2, Line 15) | E22: =SUM(E17:E21) -> 9291.72
A24: 5 | B24: Page W-2, Line 21 | C24: Income (Merchandising, Jobbing, & Contract Work) | D24: ='Page W-2'!G29 -> 3600
A25: ** | B25: Description | E25: Amount | F25: **
B26: Contracted with Silo Ridge Country Club as their water/sewer operator. | E26: 3600
B31: Total (should match amount on Page W-2, Line 21) | E31: =SUM(E26:E30) -> 3600
A33: 5 | B33: Page W-2, Line 22 | C33: Other Revenue | D33: ='Page W-2'!G30 -> 0
A34: ** | B34: Description | E34: Amount | F34: **
E35: 0
B40: Total (should match amount on Page W-2, Line 22) | E40: =SUM(E35:E39) -> 0
B42: Indicates a link to another worksheet within workbook
B43: Indicates formula cell(s) | E43: (To be used when filing under seal.)
D60: Public
D61: Highly Confidential

Sheet Page W-3
A1: 1 | D1: For the calendar year of January 1 - December 31, | E1: =IF(Cover!D13>0, Cover!D13, "") -> 2012
A2: 2 | B2: Company Name: | C2: =IF(Cover!A1>0, Cover!A1, " ") -> 
B4: WATER OPERATING REVENUES, EXPENSES AND STATISTICS (Continued)
B6: (a) | E6: Amount (b)
B7: Plant Operations Expenses
A8: 3 | B8: Repairs of Water Plant - Pump Repair | E8: 0
A9: 4 | B9: Repairs of Water Plant - Well Repair | E9: 0
A10: 5 | B10: Repairs of Water Plant - Water Line Repair | E10: 0
A11: 6 | B11: Repairs of Water Plant - Equipment Repair | E11: 190.64
A12: 7 | B12: Repairs of Water Plant - Other (List explanation on Page W-3a)
A13: 8 | B13: Fuel or Power Purchases for Pumping (i.e., Electric Bills, etc.) | E13: 7535.58
A14: 9 | B14: Chemicals | E14: 0
A15: 10 | B15: Water Testing Expenses | E15: 200
A16: 11 | B16: Other Plant Operations Expenses (List explanation on Page W-3a) | E16: 102.35
A17: 12 | B17: Total Plant Operations Expenses | E17: =SUM(E8:E16) -> 8028.57
E18: (Total to Page W-1)
B19: Tax Expenses
A20: 13 | B20: Tax Expense - Property Taxes | E20: 274.18
A21: 14 | B21: Tax Expense - Payroll Taxes | E21: 0
A22: 15 | B22: Tax Expense - Franchise Taxes | E22: 0
A23: 16 | B23: Tax Expense - Other Taxes (List explanation on Page W-3a) | E23: 0
A24: 17 | B24: Tax Expense - Federal Income Taxes | E24: 0
A25: 18 | B25: Tax Expense - State Income Taxes | E25: 0
A26: 19 | B26: Tax Expense - Investment Tax Credits | E26: 0
A27: 20 | B27: Total Tax Expenses | E27: =SUM(E20:E26) -> 274.18
E28: (Total to Page W-1)
B29: Indicates a link to another worksheet within workbook
B30: Indicates formula cell(s)
E31: (To be used when filing under seal.)
D59: Public
D60: Highly Confidential

Sheet Page W-3a
A1: 1 | D1: For the calendar year of January 1 - December 31, | E1: =IF(Cover!D13>0, Cover!D13,"") -> 2012
A2: 2 | B2: Company Name: | C2: =IF(Cover!A1>0, Cover!A1, "") -> 
A4: DETAILED EXPLANATION OF ITEMS
A6: 3 | B6: Page W-3, Line 7 | C6: Repairs of Water Plant - Other | D6: ='Page W-3'!E12 -> 0
A7: ** | B7: Description | E7: Amount | F7: **
B13: Total (should match amount on Page W-3, Line 7) | E13: =SUM(E8:E12) -> 0
A15: 4 | B15: Page W-3, Line 11 | C15: Other Plant Operation Expenses | D15: ='Page W-3'!E16 -> 102.35
A16: ** | B16: Description | E16: Amount | F16: **
B17: Ash Grove Aggreates - rock for driveway | E17: 102.35
B22: Total (should match amount on Page W-3, Line 11) | E22: =SUM(E17:E21) -> 102.35
A24: 5 | B24: Page W-3, Line 16 | C24: Tax Expense - Other Taxes | D24: ='Page W-3'!E23 -> 0
A25: ** | B25: Description | E25: Amount | F25: **
B31: Total (should match amount on Page W-3, Line 16) | E31: =SUM(E26:E30) -> 0
B42: Indicates a link to another worksheet within workbook
B43: Indicates formula cell(s) | E43: (To be used when filing under seal.)
D60: Public
D61: Highly Confidential

Sheet Page W-4
C1: PUMPING AND PURCHASED WATER STATISTICS | J1: 2 | K1: 1
C2: (Omit 000's in reporting number of gallons or cubic feet of water. Use additional sheets if necessary.) | J2: Company Name: | K2: For the calendar year of January 1 - December 31,
C4: Gallons Pumped Into System | D4: Source of Supply (Please describe source below.) | H4: Total of all Methods (a+b+c+d=e) (e)
B5: 3
B6: 4
B7: 5
B8: 6 | J8: =IF(Cover!A1>0, Cover!A1, "") -> 
B9: 7 | D9: Well #1 Well #2
D10: (a) | E10: (b) | F10: (c) | G10: (d)
B12: 8 | C12: Jan | D12: 54 | E12: 143 | H12: =SUM(D12:G12) -> 197
B13: 9 | C13: Feb | D13: 90 | E13: 140 | H13: =SUM(D13:G13) -> 230
B14: 10 | C14: Mar | D14: 282 | E14: 1295 | H14: 1577
B15: 11 | C15: April | D15: 632 | E15: 1096 | H15: 1728
B16: 12 | C16: May | D16: 613 | E16: 1038 | H16: 1651
B17: 13 | C17: June | D17: 403 | E17: 1754 | H17: 2157
B18: 14 | C18: July | D18: 466 | E18: 2003 | H18: 2469
B19: 15 | C19: Aug | D19: 688 | E19: 1243 | H19: 1931
B20: 16 | C20: Sept | D20: 996 | E20: 782 | H20: 1778
B21: 17 | C21: Oct | D21: 1114 | E21: 586 | H21: 1700
B22: 18 | C22: Nov | D22: 918 | E22: 829 | H22: 1747
B23: 19 | C23: Dec | D23: 694 | E23: 948 | H23: 1642
B24: 20 | C24: Total for Year | D24: =SUM(D12:D23) -> 6950 | E24: =SUM(E12:E23) -> 11857 | F24: =SUM(F12:F23) -> 0 | G24: =SUM(G12:G23) -> 0 | H24: =SUM(H12:H23) -> 18807
B27: 21 | C27: Maximum Quantity Supplied to the System in Any One Day: | D27: 79646 | F27: Minimum: | G27: 6355
B29: 22 | C29: Range of Pressure in the Mains as Measured at the Highest Point on System: | E29: 49.7 to 52.3
C31: If Water is Sold to Other Utilities for Resale, List Names, Addresses, Phone Numbers and Quantities Below:
C32: Name of Reseller | D32: Address | G32: Phone Number | H32: Quantity
B33: 23 | C33: None | D33: n/a | G33: n/a | H33: n/a
B34: 24
A35: Page W-4 | B35: 25
B36: 26 | K36: =IF(Cover!D13>0, Cover!D13, "") -> 2012
C38: Indicates a link to another worksheet within workbook
C39: Indicates formula cell(s) | G39: (To be used when filing under seal.)
H67: Public
H68: Highly Confidential

Sheet Page W-5
A1: 1 | H1: For the calendar year of January 1 - December 31, | I1: =IF(Cover!D13>0, Cover!D13, "") -> 2012
A2: 2 | B2: Company Name: | C2: =IF(Cover!A1>0, Cover!A1, "") -> 
B4: WATER UTILITY PLANT IN SERVICE
B5: Account Description (a) | D5: Acct. No. (b) | F5: Balance at Beginning of Year (c) | G5: Additions During the Year (d) | H5: Retirements During the Year (e) | I5: Balance at End of Year (c+d-e) (f)
B6: Intangible Plant | D6: Class B, C or D
A7: 3 | B7: Organization | D7: 301 | I7: =F7+G7-H7 -> 0
A8: 4 | B8: Franchise and Consents | D8: 302 | I8: =F8+G8-H8 -> 0
A9: 5 | B9: Miscellaneous Intangible Plant | D9: 303 | I9: =F9+G9-H9 -> 0
B10: Source of Supply Plant
A11: 6 | B11: Land and Land Rights | D11: 310 | F11: 18750 | I11: =F11+G11-H11 -> 18750
A12: 7 | B12: Structures and Improvements | D12: 311 | F12: 15570.81 | I12: 15570.81
A13: 8 | B13: Collecting and Impounding Reservoirs | D13: 312 | I13: 0
A14: 9 | B14: Lake, River, and Other Intakes | D14: 313 | I14: 0
A15: 10 | B15: Wells and Springs | D15: 314 | F15: 22087 | I15: 22087
A16: 11 | B16: Infiltration Galleries and Tunnels | D16: 315 | I16: 0
A17: 12 | B17: Supply Mains | D17: 316 | I17: 0
A18: 13 | B18: Other Water Source Plant (List explanation on Page W-5a) | D18: 317 | I18: 0
B19: Pumping Plant
A20: 14 | B20: Land and Land Rights | D20: 320 | I20: 0
A21: 15 | B21: Structures and Improvements | D21: 321 | I21: 0
A22: 16 | B22: Boiler Plant Equipment | D22: 322 | I22: 0
A23: 17 | B23: Other Power Production Equipment (List explanation on Page W-5a) | D23: 323 | I23: 0
A24: 18 | B24: Submersible Electric Pumping | D24: 325.1 | F24: 69079.3 | I24: 69079.3
A25: 19 | B25: High Service or Booster Pumps | D25: 325.2 | I25: 0
A26: 20 | B26: Diesel Pumping Equipment | D26: 326 | I26: 0
A27: 21 | B27: Hydraulic Pumping Equipment | D27: 327 | I27: 0
A28: 22 | B28: Other Pumping Equipment (List explanation on Page W-5a) | D28: 328 | I28: 0
B29: Water Treatment Plant
A30: 23 | B30: Land and Land Rights | D30: 330 | I30: 0
A31: 24 | B31: Structures and Improvements | D31: 331 | I31: 0
A32: 25 | B32: Water Treatment Equipment | D32: 332 | I32: 0
B33: Transmission and Distribution Plant
A34: 26 | B34: Land and Land Rights | D34: 340 | I34: 0
A35: 27 | B35: Structures and Improvements | D35: 341 | I35: 0
A36: 28 | B36: Distribution Reservoirs and Standpipes | D36: 342 | F36: 27515.87 | I36: 27515.87
A37: 29 | B37: Transmission and Distribution Mains | D37: 343 | F37: 335893.84 | I37: 335893.84
A38: 30 | B38: Fire Mains | D38: 344 | I38: 0
A39: 31 | B39: Services | D39: 345 | F39: 13557.78 | I39: 13557.78
A40: 32 | B40: Meters | D40: 346 | F40: 1220.29 | I40: 1220.29
A41: 33 | B41: Meter Installations | D41: 347 | I41: 0
A42: 34 | B42: Hydrants | D42: 348 | F42: 30740 | I42: 30740
A43: 35 | B43: Other Transmission and Distribution Plant | D43: 349 | I43: 0
B44: General Plant
B45: Note: USOA CLASS B and C are the same | D45: B &C | E45: D
A46: 36 | B46: Land and Land Rights | D46: 389 | E46: 370 | I46: =F46+G46-H46 -> 0
A47: 37 | B47: Structures and Improvements | D47: 390 | E47: 371 | I47: 0
A48: 38 | B48: Office Furniture and Equipment | D48: 391 | E48: 372 | F48: 250 | I48: 250
A49: 39 | B49: Office Computer and Electronic Equipment | D49: 391.1 | E49: 372.1 | I49: 0
A50: 40 | B50: Transportation Equipment | D50: 392 | E50: 373 | F50: 18750 | I50: 18750
A51: 41 | B51: Other General Equipment | D51: none | E51: 379 | I51: 0
A52: 42 | B52: Stores Equipment | D52: 393 | E52: none | I52: 0
A53: 43 | B53: Tools, Shop and Garage Equipment | D53: 394 | E53: none | F53: 1017.61 | I53: 1017.61
A54: 44 | B54: Laboratory Equipment | D54: 395 | E54: none | I54: 0
A55: 45 | B55: Power-operated Equipment | D55: 396 | E55: none | F55: 26585 | I55: 26585
A56: 46 | B56: Communication Equipment | D56: 397 | E56: none | I56: 0
A57: 47 | B57: Miscellaneous Equipment | D57: 398 | E57: none | I57: 0
A58: 48 | B58: Other Tangible Property (List explanation on Page W-5a) | D58: 399 | E58: none | I58: 0
A59: 49 | B59: Total Water Utility Plant In Service | F59: =SUM(F7:F58) -> 581017.5 | G59: =SUM(G7:G58) -> 0 | H59: =SUM(H7:H58) -> 0 | I59: =SUM(I7:I58) -> 581017.5
I60: (Total to Pages 4 & 9)
A61: NOTE: All entries should be supported by records that identify the property being added or retired, its location, and its original cost in as much detail as reasonably possible. If adjustments are included in Columns "d" and/or "e", use additional sheets.
I62: (To be used when filing under seal.)
I99: Public
I100: Highly Confidential

Sheet Page W-5a
A1: 1 | D1: For the calendar year of January 1 - December 31, | E1: =IF(Cover!D13>0, Cover!D13,"") -> 2012
A2: 2 | B2: Company Name: | C2: =IF(Cover!A1>0, Cover!A1, "") -> 
A4: DETAILED EXPLANATION OF ITEMS
A6: =A2+1&"." -> 3. | B6: Page W-5, Line 13 | C6: Other Water Source Plant | D6: ='Page W-5'!I18 -> 0
A7: ** | B7: Description | E7: Amount | F7: **
B13: Total (should match amount on Page W-5, Line 13) | E13: =SUM(E8:E12) -> 0
A15: =A6+1&"." -> 4. | B15: Page W-5, Line 17 | C15: Other Power Production Equipment | D15: ='Page W-5'!I23 -> 0
A16: ** | B16: Description | E16: Amount | F16: **
B22: Total (should match amount on Page W-5, Line 17) | E22: =SUM(E17:E21) -> 0
A24: =A15+1&"." -> 5. | B24: Page W-5, Line 22 | C24: Other Pumping Equipment | D24: ='Page W-5'!I28 -> 0
A25: ** | B25: Description | E25: Amount | F25: **
B31: Total (should match amount on Page W-5, Line 22) | E31: =SUM(E26:E30) -> 0
A33: =A24+1&"." -> 6. | B33: Page W-5, Line 48 | C33: Other Tangible Property | D33: ='Page W-5'!I58 -> 0
A34: ** | B34: Description | E34: Amount | F34: **
B40: Total (should match amount on Page W-5, Line 48) | E40: =SUM(E35:E39) -> 0
B42: Indicates a link to another worksheet within workbook
B43: Indicates formula cell(s) | E43: (To be used when filing under seal.)
D60: Public
D61: Highly Confidential

Sheet Page W-6
A1: 1 | C1: For the calendar year of January 1 - December 31, | K1: =IF(Cover!D13>0, Cover!D13, "") -> 2012
A2: 2 | D2: Company Name: | E2: =IF(Cover!A1>0, Cover!A1, "") -> 
B4: DEPRECIATION RESERVE - WATER UTILITY PLANT
B5: Acct. No. (b) | D5: Annual Depreciation Rate %*** (g) | E5: Depreciation Expense (f*g) (h) | F5: Reserve Balance at Beginning of Year (i) | G5: Retirement of Property | J5: Other Charges** (m) | K5: Reserve Balance at END of Year (h+i-j-k+l+m) (n)
G6: Book Cost of Plant Retired (j) | H6: Cost of Removal* (k) | I6: Salvage Credit* (l)
B7: ='Page W-5'!$D$6 -> Class B, C or D
A8: 3 | B8: ='Page W-5'!D7 -> 301 | G8: ='Page W-5'!H7 -> 0 | K8: =SUM(E8+F8-G8-H8+I8+J8) -> 0
A9: 4 | B9: ='Page W-5'!D8 -> 302 | G9: ='Page W-5'!H8 -> 0 | K9: =SUM(E9+F9-G9-H9+I9+J9) -> 0
A10: 5 | B10: ='Page W-5'!D9 -> 303 | G10: ='Page W-5'!H9 -> 0 | K10: 0
A12: 6 | B12: ='Page W-5'!D11 -> 310 | G12: ='Page W-5'!H11 -> 0 | K12: 0
A13: 7 | B13: ='Page W-5'!D12 -> 311 | D13: 0.025 | E13: 389.27 | F13: 2352.74 | G13: ='Page W-5'!H12 -> 0 | K13: 2742.01
A14: 8 | B14: ='Page W-5'!D13 -> 312 | G14: ='Page W-5'!H13 -> 0 | K14: 0
A15: 9 | B15: ='Page W-5'!D14 -> 313 | G15: ='Page W-5'!H14 -> 0 | K15: 0
A16: 10 | B16: ='Page W-5'!D15 -> 314 | D16: 0.02 | E16: 441.74 | F16: 2669.8 | G16: ='Page W-5'!H15 -> 0 | K16: 3111.54
A17: 11 | B17: ='Page W-5'!D16 -> 315 | G17: ='Page W-5'!H16 -> 0 | K17: 0
A18: 12 | B18: ='Page W-5'!D17 -> 316 | G18: ='Page W-5'!H17 -> 0 | K18: 0
A19: 13 | B19: ='Page W-5'!D18 -> 317 | G19: ='Page W-5'!H18 -> 0 | K19: 0
A21: 14 | B21: ='Page W-5'!D20 -> 320 | G21: ='Page W-5'!H20 -> 0 | K21: 0
A22: 15 | B22: ='Page W-5'!D21 -> 321 | G22: ='Page W-5'!H21 -> 0 | K22: 0
A23: 16 | B23: ='Page W-5'!D22 -> 322 | G23: ='Page W-5'!H22 -> 0 | K23: 0
A24: 17 | B24: ='Page W-5'!D23 -> 323 | G24: ='Page W-5'!H23 -> 0 | K24: 0
A25: 18 | B25: ='Page W-5'!D24 -> 325.1 | G25: ='Page W-5'!H24 -> 0 | K25: 0
A26: 19 | B26: ='Page W-5'!D25 -> 325.2 | D26: 0.1 | E26: 6907.93 | F26: 41840.46 | G26: ='Page W-5'!H25 -> 0 | K26: 48748.39
A27: 20 | B27: ='Page W-5'!D26 -> 326 | G27: ='Page W-5'!H26 -> 0 | K27: 0
A28: 21 | B28: ='Page W-5'!D27 -> 327 | G28: ='Page W-5'!H27 -> 0 | K28: 0
A29: 22 | B29: ='Page W-5'!D28 -> 328 | G29: ='Page W-5'!H28 -> 0 | K29: 0
A31: 23 | B31: ='Page W-5'!D30 -> 330 | G31: ='Page W-5'!H30 -> 0 | K31: 0
A32: 24 | B32: ='Page W-5'!D31 -> 331 | G32: ='Page W-5'!H31 -> 0 | K32: 0
A33: 25 | B33: ='Page W-5'!D32 -> 332 | G33: ='Page W-5'!H32 -> 0 | K33: 0
A35: 26 | B35: ='Page W-5'!D34 -> 340 | G35: ='Page W-5'!H34 -> 0 | K35: 0
A36: 27 | B36: ='Page W-5'!D35 -> 341 | G36: ='Page W-5'!H35 -> 0 | K36: 0
A37: 28 | B37: ='Page W-5'!D36 -> 342 | D37: 0.02 | E37: 550.32 | F37: 3326.08 | G37: ='Page W-5'!H36 -> 0 | K37: 3876.4
A38: 29 | B38: ='Page W-5'!D37 -> 343 | D38: 0.025 | E38: 8397.35 | F38: 42897.47 | G38: ='Page W-5'!H37 -> 0 | K38: 51294.82
A39: 30 | B39: ='Page W-5'!D38 -> 344 | G39: ='Page W-5'!H38 -> 0 | K39: 0
A40: 31 | B40: ='Page W-5'!D39 -> 345 | D40: 0.025 | E40: 338.95 | F40: 1864.86 | G40: ='Page W-5'!H39 -> 0 | K40: 2203.81
A41: 32 | B41: ='Page W-5'!D40 -> 346 | D41: 0.1 | E41: 122.03 | F41: 510.06 | G41: ='Page W-5'!H40 -> 0 | K41: 632.09
A42: 33 | B42: ='Page W-5'!D41 -> 347 | G42: ='Page W-5'!H41 -> 0 | K42: 0
A43: 34 | B43: ='Page W-5'!D42 -> 348 | D43: 0.02 | E43: 74.7 | F43: 448.2 | G43: ='Page W-5'!H42 -> 0 | K43: 522.9
A44: 35 | B44: ='Page W-5'!D43 -> 349 | G44: ='Page W-5'!H43 -> 0 | K44: 0
B46: ='Page W-5'!D45 -> B &C | C46: ='Page W-5'!E45 -> D
A47: 36 | B47: ='Page W-5'!D46 -> 389 | C47: ='Page W-5'!E46 -> 370 | G47: ='Page W-5'!H46 -> 0 | K47: 0
A48: 37 | B48: ='Page W-5'!D47 -> 390 | C48: ='Page W-5'!E47 -> 371 | G48: ='Page W-5'!H47 -> 0 | K48: 0
A49: 38 | B49: ='Page W-5'!D48 -> 391 | C49: ='Page W-5'!E48 -> 372 | D49: 0.05 | E49: 12 | F49: 60.34 | G49: ='Page W-5'!H48 -> 0 | K49: 72.34
A50: 39 | B50: ='Page W-5'!D49 -> 391.1 | C50: ='Page W-5'!E49 -> 372.1 | G50: ='Page W-5'!H49 -> 0 | K50: 0
A51: 40 | B51: ='Page W-5'!D50 -> 392 | C51: ='Page W-5'!E50 -> 373 | D51: 0.125 | E51: 2343.75 | F51: 14072.9 | G51: ='Page W-5'!H50 -> 0 | K51: 16416.65
A52: 41 | B52: ='Page W-5'!D51 -> none | C52: ='Page W-5'!E51 -> 379 | G52: ='Page W-5'!H51 -> 0 | K52: 0
A53: 42 | B53: ='Page W-5'!D52 -> 393 | C53: ='Page W-5'!E52 -> none | G53: ='Page W-5'!H52 -> 0 | K53: 0
A54: 43 | B54: ='Page W-5'!D53 -> 394 | C54: ='Page W-5'!E53 -> none | D54: 0.05 | E54: 50.88 | F54: 307.04 | G54: ='Page W-5'!H53 -> 0 | K54: 357.92
A55: 44 | B55: ='Page W-5'!D54 -> 395 | C55: ='Page W-5'!E54 -> none | G55: ='Page W-5'!H54 -> 0 | K55: 0
A56: 45 | B56: ='Page W-5'!D55 -> 396 | C56: ='Page W-5'!E55 -> none | D56: 0.067 | E56: 1595.1 | F56: 9648.68 | G56: ='Page W-5'!H55 -> 0 | K56: 11243.78
A57: 46 | B57: ='Page W-5'!D56 -> 397 | C57: ='Page W-5'!E56 -> none | G57: ='Page W-5'!H56 -> 0 | K57: 0
A58: 47 | B58: ='Page W-5'!D57 -> 398 | C58: ='Page W-5'!E57 -> none | G58: ='Page W-5'!H57 -> 0 | K58: 0
A59: 48 | D59: Total | E59: =SUM(E7:E58) -> 21224.02 | F59: 119998.63 | G59: 0 | H59: 0 | I59: 0 | J59: 0 | K59: 141222.65
E60: (Total to Pg. 9 & Pg. W-1) | K60: (Total to Pg. 4)
B61: NOTE: Amounts included in Column "j" should be the same as in Column "e" on the preceding page. Also, Annual Depreciation Expense is equal to Column "f" from preceding page multiplied by Column "g" found on this page.
A62: * | B62: All entries included in Columns "k" and "l" should be supported by records that identify the property retired and the cost of removal or salvage is as much detail as reasonably possible.
A63: ** | B63: Report the details for these entries. Use additional sheets if necessary.
A64: *** | B64: Annual Depreciation Expense must be calculated separately. This total should be calculated based upon actual in-service and retirement date(s) of new equipment and retirements during the period.
B65: Indicates a link to another worksheet within workbook | I65: (To be used when filing under seal.)
B66: Indicates formula cell(s)
I80: Public
I81: Highly Confidential

Sheet Page W-7 (Part 1)
A1: 1 | E1: For the calendar year of January 1 - December 31, | F1: =IF(Cover!D13>0, Cover!D13, "") -> 2012
A2: 2 | B2: Company Name: | C2: =IF(Cover!A1>0, Cover!A1, "") -> 
B3: PUMPS
B4: Manufacturer and Type (i.e., High Service, Well, Standby, etc.) | C4: Capacity | D4: Date Installed | E4: Date of Last Motor Replacement | F4: Date of Last Pump Replacement
A5: 3 | B5: Well #1
A6: 4 | B6: Aremotor | C6: 80 GPM/235 | D6: 2004-04-01 | E6: 2005-12-01
A7: 5 | B7: Aremotor, Grundfoe-Submersible | C7: 370 GPM/23 | D7: 2005-12-01
A8: 6 | B8: Well #2
A9: 7 | B9: Aremotor, Grundfoe-Submersible | C9: 370 GPM/23 | D9: 2004-09-01
A10: 8 | B10: Well 1 & 2
A11: 9 | B11: Goulds Pump, ITT Industries | C11: 230 GPM/65 | D11: Well #1 12/1/2005
A12: 10 | B12: Two 3 Unit Booster Pumps | C12: 680 GPM/65 | D12: Well #2 4/1/2004
A13: 11
A14: 12
A15: Page W-7a
F18: (To be used when filing under seal.)
E36: Public
E37: Highly Confidential

Sheet Page W-7 (Part 2)
A1: 1 | E1: For the calendar year of January 1 - December 31, | F1: =IF(Cover!D13>0, Cover!D13, "") -> 2012
A2: 2 | B2: Company Name: | C2: =IF(Cover!A1>0, Cover!A1, "") -> 
B3: WELLS
A4: 13 | C4: Number: | D4: Number: | E4: Number: | F4: Number:
A7: 14 | B7: Description (i.e., Deep, Artisian, Spring, etc.) | C7: Deep | D7: Deep
A8: 15 | B8: Year Constructed | C8: 2004-06-22 | D8: 2004
A9: 16 | B9: Type of Construction | C9: Drilled | D9: Drilled
A10: 17 | B10: Type of Casing | C10: Steel | D10: Steel
A11: 18 | B11: Depth and Diameter of Well | C11: 610' x 8" | D11: 900'x6"
A12: 19 | B12: Yield of Well in Gallons per day | C12: .053 MGD | D12: .053 MGD
A13: 20 | B13: Chemicals (i.e., Provide Type, Cost and Quantities of Each): | C13: NA | D13: NA
A14: 21 | B14: Type -
A15: 22 | B15: Cost -
A16: 23 | B16: Quantity - | I16: =IF(Cover!D13>0, Cover!D13, "") -> 2012
A17: Page W-7 (Part 1
E19: (To be used when filing under seal.)
E45: Public
E46: Highly Confidential

Sheet Page W-8
C1: METERS AND METER SETTINGS | K1: 2 | L1: 1
C2: Customer Class (a) | D2: Meter Size (b) | E2: Total at Beginning of Year (c) | F2: Total No. of Additions (d) | G2: Total No. Removed or Disconnected (e) | H2: Total at End of Year (f) | I2: Total No. Owned by Customers at End of Year (g) | K2: Company Name: | L2: For the calendar year of January 1 - December 31,
B3: 3 | C3: Residential: | D3: 5/8" | E3: 69 | F3: 16 | H3: 85 | K3: =IF(Cover!A1>0, Cover!A1, "") -> 
B4: 4 | D4: 2" | E4: 1 | H4: 1
B5: 5 | C5: Commercial | D5: 5/8" | E5: 32 | H5: 32
B6: 6 | D6: 1" | E6: 2 | F6: 2 | H6: 4
B7: 7 | C7: Other Customers: | D7: 1 1/2" | E7: 2 | H7: 2
B8: 8 | D8: 2" | E8: 2 | H8: 2
B9: 9
B10: 10 | C10: Total in Use by Customers | E10: =SUM(E3:E9) -> 108 | F10: =SUM(F3:F9) -> 18 | G10: =SUM(G3:G9) -> 0 | H10: =SUM(H3:H9) -> 126 | I10: =SUM(I3:I9) -> 0 | IV10: =SUM(IV3:IV9) -> 0
B11: 11 | C11: Not in Use (i.e., Inventory) | E11: 36 | F11: 5 | H11: 23
B12: 12
B13: 13
B14: 14 | C14: Total Meters | E14: =SUM(E10:E13) -> 144 | F14: =SUM(F10:F13) -> 23 | G14: =SUM(G10:G13) -> 0 | H14: =SUM(H10:H13) -> 149 | I14: =I10 -> 0
C16: STORAGE FACILITIES
C17: Type of Storage (i.e., Pneumatic, Ground, Standpipes, Elevated Tanks, etc.) (a) | G17: Construction Material (b) | H17: Last Date Painted if Applicable (indicate interior or exterior) (c) | I17: Capacity (d)
B18: 15 | C18: Well #1 - Elevated Tank | G18: Steel | I18: 21,000 gal
B19: 16 | C19: Well #2 - Elevated Tank | G19: Steel | I19: 21,000 gal
A20: Page W-8 | B20: 17
B21: 18
B22: 19 | L22: =IF(Cover!D13>0, Cover!D13, "") -> 2012
C25: Indicates formula cell(s) | I25: (To be used when filing under seal.)
H43: Public
H44: Highly Confidential

Sheet Page W-9
C1: MAINS (measurement in feet) | J1: 2 Company Name: | K1: 1
C2: Kind of Pipe (i.e., cast iron, galvanized, iron, plastic, etc.) (a) | D2: Diameter of Pipe (b) | E2: Total at Beginning of Year (c) | F2: Total Additions During the Year (d) | G2: Total Removed or Abandoned During the Year (e) | H2: Total at End of Year (f)
B3: 3 | C3: Plastic | D3: 8" | E3: 14985 | F3: - | G3: 0 | H3: =SUM(E3+F3-G3) ->  | J3: =IF(Cover!A1>0, Cover!A1, "") -> 
B4: 4 | C4: Plastic | D4: 6" | E4: 3219 | F4: - | G4: 0 | H4: =SUM(E4+F4-G4) -> 
B5: 5 | H5: 0
B6: 6 | H6: 0
B7: 7 | H7: 0
B8: 8 | H8: 0
B9: 9 | H9: 0
B10: 10 | H10: 0
B11: 11 | H11: 0
B12: 12 | H12: 0
B13: 13 | H13: 0
B14: 14 | H14: 0
B15: 15 | H15: 0
B16: 16 | C16: Total Mains | E16: =SUM(E3:E15) -> 18204 | F16: =SUM(F3:F15) -> 0 | G16: =SUM(G3:G15) -> 0 | H16: =SUM(H3:H15) -> 
C17: SERVICES AVAILABLE FOR USE (from Main to Property Line) | K17: For the calendar year of January 1 - December 31,
C18: Size and Description by Type of Material (i.e., iron, copper, plastic, etc.) (a) | D18: Owned by Utility | H18: Total No. Owned by Customers at End of Year (f)
D19: Total No. at Beginning of Year (b) | E19: Total No. of Additions (c) | F19: Total No. Retired or Abandoned (d) | G19: Total No. at End of Year (e)
C20: In Use:
B21: 15 | C21: 3/4 Tubing | D21: 77 | G21: =SUM(D21+E21-F21) -> 77
B22: =B21+1 -> 16 | C22: 3/4 PVC | D22: 23 | G22: =SUM(D22+E22-F22) -> 23
B23: 17 | C23: 1 PVC | D23: 6 | G23: 6
B24: 18 | C24: 2" PVC | D24: 2 | G24: 2
C25: For Future Use:
B26: =B24+1 -> 19 | C26: 3/4 Tubing | D26: 92 | G26: 92
B27: 20 | C27: 3/4 PVC | D27: 2 | G27: 2
B28: 21 | C28: 1" PVC | D28: 37 | G28: 37
A29: Page W-9 | B29: 22 | C29: 2" PVC | D29: 2 | G29: 2
B30: 23 | C30: Total of All Services | D30: =SUM(D20:D29) -> 241 | E30: =SUM(E20:E29) -> 0 | F30: =SUM(F20:F29) -> 0 | G30: =SUM(G20:G29) -> 241 | H30: =SUM(H20:H29) -> 0 | K30: =IF(Cover!D13>0, Cover!D13, "") -> 2012
B33: Indicates formula cell(s) | G33: (To be used when filing under seal.)
G51: Public
G52: Highly Confidential

Sheet Page S-1
A1: 1 | C1: For the calendar year of January 1 - December 31, | D1: =IF(Cover!D13>0, Cover!D13, "") -> 2012
A2: 2 | B2: Company Name: | C2: =IF(Cover!A1>0, Cover!A1, "") -> 
B4: SEWER OPERATING REVENUES, EXPENSES AND STATISTICS
B5: (a) | D5: Amount (b)
A6: 3 | B6: Total Operating Revenues (From Page S-2) | D6: ='Page S-2'!G29 -> 50775.29
B7: Operating Expenses
A8: 4 | B8: Salaries & Wages (From Page 7) | D8: ='Page 7'!E23 -> 13711.68
A9: 5 | B9: Employee Pensions and Benefits | D9: 0
A10: 6 | B10: Purchased Water | D10: 0
A11: 7 | B11: Plant Operations Expenses (From Page S-3) | D11: ='Page S-3'!E18 -> 20884.18
A12: 8 | B12: Billing Expenses | D12: 420.66
A13: 9 | B13: Supplies and Expenses | D13: 259.11
A14: 10 | B14: Transportation Expenses | D14: 2791.68
A15: 11 | B15: Rent Expense (List explanation on Page S-1a) | D15: 0
A16: 12 | B16: Insurance Expense | D16: 2478.51
A17: 13 | B17: Outside Services Employed (i.e., Legal, Accounting, etc.) (From Page 8) | D17: ='Page 8'!E24 -> 3318
A18: 14 | B18: Regulatory Commission Expenses | D18: 3662.37
A19: 15 | B19: Uncollectible Expenses (From Page 6) | D19: ='Page 6'!F36 -> 0
A20: 16 | B20: Depreciation Expense (From Page S-5) | D20: ='Page S-5'!E49 -> 13035.22
A21: 17 | B21: Amortization of Contributions in Aid of Construction (Page 9) | D21: =-('Page 9'!E33+'Page 9'!E40) -> -13539.02604
A22: 18 | B22: Amortization Expense
A23: 19 | B23: Tax Expenses (From Page S-3) | D23: ='Page S-3'!E28 -> 203.1
A24: 20 | B24: Interest Expense (From Page 10) | D24: ='Page 10'!K24 -> 0
A25: 21 | B25: Other Expenses (List explanation on Page S-1a)
A26: 22 | B26: Total Operating Expenses | D26: =SUM(D8:D25) -> 47225.48396
A27: 23 | B27: Net Income (Loss: This number should be negative as it is an offset to depreciation expense) | D27: =SUM(D6-D26) -> 3549.806044
B29: Indicates a link to another worksheet within workbook
B30: Indicates formula cell(s) | D30: (To be used when filing under seal.)
D69: Public
D70: Highly Confidential
D79: Public
D80: Highly Confidential

Sheet Page S-1a
A1: 1 | D1: For the calendar year of January 1 - December 31, | E1: =IF(Cover!D13>0, Cover!D13,"") -> 2012
A2: 2 | B2: Company Name: | C2: =IF(Cover!A1>0, Cover!A1, "") -> 
A4: DETAILED EXPLANATION OF ITEMS
A6: 3 | B6: Page S-1, Line 11 | C6: Rent Expense | D6: ='Page S-1'!D15 -> 0
A7: ** | B7: Description | E7: Amount | F7: **
B13: Total (should match amount on Page S-1, Line 11) | E13: =SUM(E8:E12) -> 0
A15: 4 | B15: Page S-1, Line 21 | C15: Other Expenses | D15: ='Page S-1'!D25 -> 0
A16: ** | B16: Description | E16: Amount | F16: **
B17: Cell phone fees for operator | E17: 193.61
B18: Shop supplies (gloves, fire extinguishers, trash bags, garden hoses) | E18: 237.82
B19: Office supplies | E19: 259.11
B20: Employee Bonuses | E20: 375
B21: Bank fees/check orders | E21: 35
B22: Total (should match amount on Page S-1, Line 21) | E22: =SUM(E17:E21) -> 1100.54
B42: Indicates a link to another worksheet within workbook
B43: Indicates formula cell(s) | E43: (To be used when filing under seal.)
D60: Public
D61: Highly Confidential

Sheet Page S-2
A1: 1 | F1: For the calendar year of January 1 - December 31, | G1: =IF(Cover!D13>0, Cover!D13, "") -> 2012
A2: 2 | B2: Company Name: | C2: =IF(Cover!A1>0, Cover!A1, "") -> 
B4: SEWER OPERATING REVENUES, EXPENSES AND STATISTICS (Continued)
B5: (Please indicate if metered amounts are in cubic feet measurements.)
B6: (a) | D6: No. of Customers | F6: Gallons Sold 000's Omitted (d) | G6: Revenue Amount (e)
D7: Beginning of Year (b) | E7: End of Year (c)
B8: Flat Rate Sales
A9: 3 | B9: Residential - Single Family | D9: 69 | E9: 81 | F9: XXXX | G9: 26862.37
A10: 4 | B10: Residential - Apartments | D10: 1 | E10: 1 | F10: XXXX | G10: 973.3
A11: 5 | B11: Residential - Mobile Homes | F11: XXXX | G11: 0
A12: 6 | B12: Commercial | F12: XXXX | G12: 0
A13: 7 | B13: Other Sales to Public Authorities | F13: XXXX | G13: 0
A14: 8 | B14: Other (List explanation on Page S-2a) | F14: XXXX | G14: 0
A15: 9 | B15: Total Unmetered Sales | D15: =SUM(D9:D14) -> 70 | E15: =SUM(E9:E14) -> 82 | F15: XXXX | G15: =SUM(G9:G14) -> 27835.67
B16: Metered Sales Based onWater Usage
A17: 10 | B17: Commercial | D17: 38 | E17: 38 | G17: 10188.62
A18: 11 | B18: Other Sales to Public Authorities | G18: 0
A19: 12 | B19: Other (List explanation on Page S-2a) | G19: 0
A20: 13 | B20: Total Metered Sales | D20: =SUM(D17:D19) -> 38 | E20: =SUM(E17:E19) -> 38 | F20: =SUM(F17:F19) -> 0 | G20: =SUM(G17:G19) -> 10188.62
B21: Other Operating Revenues
A22: 14 | B22: Late Payment Fees | G22: 0
A23: 15 | B23: Inspection Fees | G23: 2000
A24: 16 | B24: Reconnect Fees | G24: 0
A25: 17 | B25: Rent Income | G25: 0
A26: 18 | B26: Income from Merchandising, Jobbing & Contract Work (List explanation on Page S-2a) | G26: 3600
A27: 19 | B27: Other Revenue (List explanation on Page S-2a) | G27: 7151
A28: 20 | B28: Total Other Operating Revenues | G28: =SUM(G22:G27) -> 12751
A29: 21 | B29: Total Operating Revenues * | G29: =SUM(G15+G20+G28) -> 50775.29
G30: (Total to Pg. S-1)
A31: * | B31: Total Operating Revenues should match Statement of Revenue (MOPSC Assessment).
B32: Indicates a link to another worksheet within workbook
B33: Indicates formula cell(s) | G33: (To be used when filing under seal.)
F51: Public
F52: Highly Confidential

Sheet Page S-2a
A1: 1 | D1: For the calendar year of January 1 - December 31, | E1: =IF(Cover!D13>0, Cover!D13,"") -> 2012
A2: 2 | B2: Company Name: | C2: =IF(Cover!A1>0, Cover!A1, "") -> 
A4: DETAILED EXPLANATION OF ITEMS
A6: 3 | B6: Page S-2, Line 8 | C6: Other | D6: ='Page S-2'!G14 -> 0
A7: ** | B7: Description | E7: Amount | F7: **
B13: Total (should match amount on Page S-2, Line 8) | E13: =SUM(E8:E12) -> 0
A15: 4 | B15: Page S-2, Line 12 | C15: Other | D15: ='Page S-2'!G19 -> 0
A16: ** | B16: Description | E16: Amount | F16: **
B22: Total (should match amount on Page S-2, Line 12) | E22: =SUM(E17:E21) -> 0
A24: 5 | B24: Page S-2, Line 18 | C24: Income (Merchandising, Jobbing, & Contract Work ) | D24: ='Page S-2'!G26 -> 3600
A25: ** | B25: Description | E25: Amount | F25: **
B26: Contracted with Silo Ridge Country Cub as their water/sewer operator | E26: 3600
B31: Total (should match amount on Page S-2, Line 18) | E31: =SUM(E26:E30) -> 3600
A33: 5 | B33: Page S-2, Line 19 | C33: Other Revenue | D33: ='Page S-2'!G27 -> 7151
A34: ** | B34: Description | E34: Amount | F34: **
B35: Sewer pre-treat fee for restaurant on system, per tariffs | E35: 6351
B36: 20 loans black water from RV lagoon for treatment | E36: 800
B40: Total (should match amount on Page S-2, Line 19) | E40: =SUM(E35:E39) -> 7151
B42: Indicates a link to another worksheet within workbook
B43: Indicates formula cell(s) | E43: (To be used when filing under seal.)
D60: Public
D61: Highly Confidential

Sheet Page S-3
A1: 1 | D1: For the calendar year of January 1 - December 31, | E1: =IF(Cover!D13>0, Cover!D13, "") -> 2012
A2: 2 | B2: Company Name: | C2: =IF(Cover!A1>0, Cover!A1, " ") -> 
B4: SEWER OPERATING REVENUES, EXPENSES AND STATISTICS (Continued)
B5: (a) | E5: Amount (b)
B6: Plant Operations Expenses
A7: 3 | B7: Contracted Maintenance Expenses
A8: 4 | B8: Repairs of Sewer Plant - Pump Repair
A9: 5 | B9: Repairs of Sewer Plant - Treatment Repair | E9: 2254.23
A10: 6 | B10: Repairs of Sewer Plant - Collecting Sewers and Manhole Repair
A11: 7 | B11: Repairs of Sewer Plant - Equipment Repair
A12: 8 | B12: Repairs of Sewer Plant - Other (List explanation on Page S-3a)
A13: 9 | B13: Utility Bills | E13: 9948.65
A14: 10 | B14: Chemicals | E14: 0
A15: 11 | B15: Sludge Hauling Expenses | E15: 1195
A16: 12 | B16: Effluent Testing Expenses | E16: 2266.3
A17: 13 | B17: Other Plant Operations Expenses (List explanation on Page S-3a) | E17: 5220
A18: 14 | B18: Total Plant Operations Expenses | E18: =SUM(E7:E17) -> 20884.18
E19: (Total to Page S-1)
B20: Tax Expenses
A21: =A18+1 -> 15 | B21: Tax Expense - Property Taxes | E21: 203.1
A22: =A21+1 -> 16 | B22: Tax Expense - Payroll Taxes | E22: 0
A23: =A22+1 -> 17 | B23: Tax Expense - Franchise Taxes | E23: 0
A24: 18 | B24: Tax Expense - Other Taxes (List explanation on Page S-3a) | E24: 0
A25: 19 | B25: Tax Expense - Federal Income Taxes | E25: 0
A26: 20 | B26: Tax Expense - State Income Taxes | E26: 0
A27: 21 | B27: Tax Expense - Investment Tax Credits | E27: 0
A28: 22 | B28: Total Tax Expenses | E28: =SUM(E21:E27) -> 203.1
E29: (Total to Page S-1)
B32: Indicates formula cell(s) | E32: (To be used when filing under seal.)
D69: Public
D70: Highly Confidential

Sheet Page S-3a
A1: 1 | D1: For the calendar year of January 1 - December 31, | E1: =IF(Cover!D13>0, Cover!D13,"") -> 2012
A2: 2 | B2: Company Name: | C2: =IF(Cover!A1>0, Cover!A1, "") -> 
A4: DETAILED EXPLANATION OF ITEMS
A6: 3. | B6: Page S-3, Line 8 | C6: Repairs of Sewer Plant - Other | D6: ='Page S-3'!E12 -> 0
A7: ** | B7: Description | E7: Amount | F7: **
B13: Total (should match amount on Page S-3, Line 8) | E13: =SUM(E8:E12) -> 0
A15: 4. | B15: Page S-3, Line 13 | C15: Other Plant Operations Expenses | D15: ='Page S-3'!E17 -> 5220
A16: ** | B16: Description | E16: Amount | F16: **
B17: Greers Pumping - Quarterly Pumping of Grease & Ammonia Tanks (at restaurant lift station) | E17: 5220
B22: Total (should match amount on Page S-3, Line 13) | E22: =SUM(E17:E21) -> 5220
A24: 5. | B24: Page S-3, Line 18 | C24: Tax Expense - Other Taxes | D24: ='Page S-3'!E24 -> 0
A25: ** | B25: Description | E25: Amount | F25: **
B31: Total (should match amount on Page S-3, Line 18) | E31: =SUM(E26:E30) -> 0
B42: Indicates a link to another worksheet within workbook
B43: Indicates formula cell(s) | E43: (To be used when filing under seal.)
D60: Public
D61: Highly Confidential

Sheet Page S-4
A1: 1 | H1: For the calendar year of January 1 - December 31, | I1: =IF(Cover!D13>0, Cover!D13, "") -> 2012
A2: =A1+1 -> 2 | B2: Company Name: | C2: =IF(Cover!A1>0, Cover!A1, "") -> 
B4: SEWER UTILITY PLANT IN SERVICE
B5: Account Description (a) | D5: Acct. No. (b) | F5: Balance at Beginning of Year (c) | G5: Additions During the Year (d) | H5: Retirements During the Year (e) | I5: Balance at End of Year (c+d-e) (f)
D6: CLASS B | E6: CLASS C & D
B7: Intangible Plant
A8: =A2+1 -> 3 | B8: Organization | D8: 301 | E8: 301 | I8: =SUM(F8+G8-H8) -> 0
A9: =A8+1 -> 4 | B9: Franchise and Consents | D9: 302 | E9: 302 | I9: =SUM(F9+G9-H9) -> 0
A10: =A9+1 -> 5 | B10: Miscellaneous Intangible Plant | D10: 303 | E10: 303 | I10: 0
B11: Land and Structures
A12: =A10+1 -> 6 | B12: Land and Land Rights | D12: none | E12: 310 | F12: 8153.3 | I12: 8153.3
A13: =A12+1 -> 7 | B13: Structures and Improvements | D13: none | E13: 311 | F13: 9247.58 | I13: 9247.58
B14: Collection Plant
A15: =A13+1 -> 8 | B15: Land and Land Rights | D15: 350 | E15: none | I15: 0
A16: =A15+1 -> 9 | B16: Structures and Improvements | D16: 351 | E16: none | I16: 0
A17: 10 | B17: Collection Sewer - Force | D17: 352.1 | E17: 352.1 | F17: 25278.24 | I17: 25278.24
A18: 11 | B18: Collection Sewer - Gravity | D18: 352.2 | E18: 352.2 | F18: 134903.09 | I18: 134903.09
A19: 12 | B19: Other Collection Plant Facilities (List explanation on Page S-4a) | D19: 353 | E19: 353 | I19: 0
A20: 13 | B20: Services to Customers | D20: 354 | E20: 354 | F20: 20276.76 | I20: 20276.76
A21: 14 | B21: Flow Measuring Devices | D21: 355 | E21: 355 | F21: 3437.32 | I21: 3437.32
B22: Pumping Plant
A23: =A21+1 -> 15 | B23: Land and Land Rights | D23: 360 | E23: none | I23: 0
A24: =A23+1 -> 16 | B24: Structures and Improvements | D24: 361 | E24: none | I24: 0
A25: =A24+1 -> 17 | B25: Receiving Wells and Pump Pits | D25: 362 | E25: 362 | F25: 29048.61 | I25: 29048.61
A26: =A25+1 -> 18 | B26: Pumping Equipment | D26: 363 | E26: 363 | F26: 14920.89 | I26: 14920.89
B27: Treatment and Disposal
A28: =A26+1 -> 19 | B28: Land and Land Rights | D28: 370 | E28: none | I28: 0
A29: =A28+1 -> 20 | B29: Structures and Improvements | D29: 371 | E29: none | I29: 0
A30: =A29+1 -> 21 | B30: Oxidation Lagoon | D30: none | E30: 372 | I30: 0
A31: 22 | B31: Treatment and Disposal Equipment | D31: 372 | E31: 373 | F31: 47618.94 | I31: 47618.94
A32: 23 | B32: Sewer Collection (Septic) Tanks | D32: 372.1 | E32: 373.1 | I32: 0
A33: 24 | B33: Plant Sewer | D33: 373 | E33: 374 | F33: 125103.87 | I33: 125103.87
A34: 25 | B34: Outfall Sewer Lines | D34: 374 | E34: 375 | I34: 0
A35: 26 | B35: Other Treatment and Disposal Plant Equipment (List explanation on Page S-4a) | D35: 375 | E35: 376 | F35: 8719.36 | I35: 8719.36
B36: General Plant
A37: =A35+1 -> 27 | B37: Land and Land Rights | D37: 389 | E37: none | I37: 0
A38: =A37+1 -> 28 | B38: Structures and Improvements | D38: 390 | E38: none | I38: 0
A39: =A38+1 -> 29 | B39: Office Furniture and Equipment | D39: 391 | E39: 391 | F39: 160 | I39: 160
A40: 30 | B40: Computer and Electronic Office Equipment | D40: 391.1 | E40: 391.1 | I40: 0
A41: 31 | B41: Transportation Equipment | D41: 392 | E41: 392 | F41: 1200 | G41: 4625 | I41: 5825
A42: 32 | B42: Other General Equipment (List explanation on Page S-4a) | D42: none | E42: 393 | I42: 0
A43: 33 | B43: Stores Equipment | D43: 393 | E43: None | I43: 0
A44: 34 | B44: Tools Shop and Garage Equipment | D44: 394 | E44: None | I44: 0
A45: 35 | B45: Laboratory Equipment | D45: 395 | E45: None | I45: 0
A46: 36 | B46: Power Operated Equipment | D46: 396 | E46: None | I46: 0
A47: 37 | B47: Communications Equipment | D47: 397 | E47: None | I47: 0
A48: =A47+1 -> 38 | B48: Total Sewer Utility Plant In Service | F48: =SUM(F8:F47) -> 428067.96 | G48: =SUM(G8:G47) -> 4625 | H48: =SUM(H8:H47) -> 0 | I48: 432692.96
I49: (Total to Pages 4 & 9)
B50: NOTE: All entries should be supported by records that identify the property being added or retired, its location, and its original cost in as much detail as reasonably possible. If adjustments are included in Columns "d" and/or "e", please explain below. Use additional sheets if necessary.
A52: 39 | B52: Explanation:
B54: Indicates a link to another worksheet within workbook
B55: Indicates formula cell(s) | I55: (To be used when filing under seal.)
H73: Public
H74: Highly Confidential

Sheet Page S-4a
A1: 1 | D1: For the calendar year of January 1 - December 31, | E1: =IF(Cover!D13>0, Cover!D13,"") -> 2012
A2: 2 | B2: Company Name: | C2: =IF(Cover!A1>0, Cover!A1, "") -> 
A4: DETAILED EXPLANATION OF ITEMS
A6: 3. | B6: Page S-4, Line 12 | C6: Other Collection Plant Facilities | D6: ='Page S-4'!I19 -> 0
A7: ** | B7: Description | E7: Amount | F7: **
B13: Total (should match amount on Page S-4, Line 12) | E13: =SUM(E8:E12) -> 0
A15: 4. | B15: Page S-4, Line 26 | C15: Other Treatment & Disposal Plant Equipment | D15: ='Page S-4'!I35 -> 8719.36
A16: ** | B16: Description | E16: Amount | F16: **
B22: Total (should match amount on Page S-4, Line 26) | E22: =SUM(E17:E21) -> 0
A24: 5. | B24: Page S-4, Line 32 | C24: Other General Equipment | D24: ='Page S-4'!I42 -> 0
A25: ** | B25: Description | E25: Amount | F25: **
B31: Total (should match amount on Page S-4, Line 32) | E31: =SUM(E26:E30) -> 0
B42: Indicates a link to another worksheet within workbook
B43: Indicates formula cell(s) | E43: (To be used when filing under seal.)
D60: Public
D61: Highly Confidential

Sheet Page S-5
A1: 1 | J1: For the calendar year of January 1 - December 31, | K1: =IF(Cover!D13>0, Cover!D13, "") -> 2012
A2: =A1+1 -> 2 | D2: Company Name: | E2: =IF(Cover!A1>0, Cover!A1, "") -> 
B4: DEPRECIATION RESERVE - SEWER UTILITY PLANT
B5: Acct. No. (b) | D5: Annual Depreciation Rate % (g) | E5: Annual Depreciation Expense (f*g) (h)*** | F5: Reserve Balance at Beginning of Year (i) | G5: Retirement of Property | J5: Other Charges (m)** | K5: Reserve Balance at End of Year (h+i-j-k+l+m) (n)
G6: Book Cost of Plant Retired (j) | H6: Cost of Removal (k)* | I6: Salvage Credit (l)*
B7: CLASS B | C7: CLASS C & D
A9: 3 | B9: ='Page S-4'!D8 -> 301 | C9: ='Page S-4'!E8 -> 301 | G9: ='Page S-4'!H8 -> 0 | K9: =SUM(E9+F9-(G9+H9-I9)+J9) -> 0
A10: =A9+1 -> 4 | B10: ='Page S-4'!D9 -> 302 | C10: ='Page S-4'!E9 -> 302 | G10: ='Page S-4'!H9 -> 0 | K10: =SUM(E10+F10-(G10+H10-I10)+J10) -> 0
A11: =A10+1 -> 5 | B11: ='Page S-4'!D10 -> 303 | C11: ='Page S-4'!E10 -> 303 | G11: ='Page S-4'!H10 -> 0 | K11: 0
A13: =A11+1 -> 6 | B13: ='Page S-4'!D12 -> none | C13: ='Page S-4'!E12 -> 310 | D13: 0.025 | E13: 231.19 | F13: 693.57 | G13: ='Page S-4'!H12 -> 0 | K13: 924.76
A14: =A13+1 -> 7 | B14: ='Page S-4'!D13 -> none | C14: ='Page S-4'!E13 -> 311 | G14: ='Page S-4'!H13 -> 0 | K14: 0
A16: =A14+1 -> 8 | B16: ='Page S-4'!D15 -> 350 | C16: ='Page S-4'!E15 -> none | G16: ='Page S-4'!H15 -> 0 | K16: 0
A17: =A16+1 -> 9 | B17: ='Page S-4'!D16 -> 351 | C17: ='Page S-4'!E16 -> none | G17: ='Page S-4'!H16 -> 0 | K17: 0
A18: 10 | B18: ='Page S-4'!D17 -> 352.1 | C18: ='Page S-4'!E17 -> 352.1 | D18: 0.02 | E18: 505.57 | F18: 1516.71 | G18: ='Page S-4'!H17 -> 0 | K18: 2022.28
A19: 11 | B19: ='Page S-4'!D18 -> 352.2 | C19: ='Page S-4'!E18 -> 352.2 | D19: 0.02 | E19: 2698.07 | F19: 7275.94 | G19: ='Page S-4'!H18 -> 0 | K19: 9974.01
A20: 12 | B20: ='Page S-4'!D19 -> 353 | C20: ='Page S-4'!E19 -> 353 | G20: ='Page S-4'!H19 -> 0 | K20: 0
A21: 13 | B21: ='Page S-4'!D20 -> 354 | C21: ='Page S-4'!E20 -> 354 | D21: 0.033 | E21: 669.14 | F21: 2007.42 | G21: ='Page S-4'!H20 -> 0 | K21: 2676.56
A22: 14 | B22: ='Page S-4'!D21 -> 355 | C22: ='Page S-4'!E21 -> 355 | D22: 0.033 | E22: 113.44 | F22: 340.32 | G22: ='Page S-4'!H21 -> 0 | K22: 453.76
A24: =A22+1 -> 15 | B24: ='Page S-4'!D23 -> 360 | C24: ='Page S-4'!E23 -> none | G24: ='Page S-4'!H23 -> 0 | K24: 0
A25: =A24+1 -> 16 | B25: ='Page S-4'!D24 -> 361 | C25: ='Page S-4'!E24 -> none | G25: ='Page S-4'!H24 -> 0 | K25: 0
A26: =A25+1 -> 17 | B26: ='Page S-4'!D25 -> 362 | C26: ='Page S-4'!E25 -> 362 | G26: ='Page S-4'!H25 -> 0 | K26: 0
A27: =A26+1 -> 18 | B27: ='Page S-4'!D26 -> 363 | C27: ='Page S-4'!E26 -> 363 | D27: 0.04 | E27: 1161.95 | F27: 3485.85 | G27: ='Page S-4'!H26 -> 0 | K27: 4647.8
K28: 0
A29: =A27+1 -> 19 | B29: ='Page S-4'!D28 -> 370 | C29: ='Page S-4'!E28 -> none | D29: 0.1 | E29: 1492.09 | F29: 4476.27 | G29: ='Page S-4'!H28 -> 0 | K29: 5968.36
A30: =A29+1 -> 20 | B30: ='Page S-4'!D29 -> 371 | C30: ='Page S-4'!E29 -> none | G30: ='Page S-4'!H29 -> 0 | K30: 0
A31: =A30+1 -> 21 | B31: ='Page S-4'!D30 -> none | C31: ='Page S-4'!E30 -> 372 | G31: ='Page S-4'!H30 -> 0 | K31: 0
A32: 22 | B32: ='Page S-4'!D31 -> 372 | C32: ='Page S-4'!E31 -> 373 | G32: ='Page S-4'!H31 -> 0 | K32: 0
A33: 23 | B33: ='Page S-4'!D32 -> 372.1 | C33: ='Page S-4'!E32 -> 373.1 | G33: ='Page S-4'!H32 -> 0 | K33: 0
A34: 24 | B34: ='Page S-4'!D33 -> 373 | C34: ='Page S-4'!E33 -> 374 | D34: 0.05 | E34: 2380.95 | F34: 5983.3 | G34: ='Page S-4'!H33 -> 0 | K34: 8364.25
A35: 25 | B35: ='Page S-4'!D34 -> 374 | C35: ='Page S-4'!E34 -> 375 | G35: ='Page S-4'!H34 -> 0 | K35: 0
A36: 26 | B36: ='Page S-4'!D35 -> 375 | C36: ='Page S-4'!E35 -> 376 | D36: 0.025 | E36: 3127.6 | F36: 8124.1 | G36: ='Page S-4'!H35 -> 0 | K36: 11251.7
A38: =A36+1 -> 27 | B38: ='Page S-4'!D37 -> 389 | C38: ='Page S-4'!E37 -> none | G38: ='Page S-4'!H37 -> 0 | K38: 0
A39: =A38+1 -> 28 | B39: ='Page S-4'!D38 -> 390 | C39: ='Page S-4'!E38 -> none | G39: ='Page S-4'!H38 -> 0 | K39: 0
A40: =A39+1 -> 29 | B40: ='Page S-4'!D39 -> 391 | C40: ='Page S-4'!E39 -> 391 | D40: 0.05 | E40: 435.97 | F40: 1307.91 | G40: ='Page S-4'!H39 -> 0 | K40: 1743.88
A41: 30 | B41: ='Page S-4'!D40 -> 391.1 | C41: ='Page S-4'!E40 -> 391.1 | G41: ='Page S-4'!H40 -> 0 | K41: 0
A42: 31 | B42: ='Page S-4'!D41 -> 392 | C42: ='Page S-4'!E41 -> 392 | D42: 0.05 | E42: 219.25 | F42: 24 | G42: ='Page S-4'!H41 -> 0 | K42: 243.25
A43: 32 | B43: ='Page S-4'!D42 -> none | C43: ='Page S-4'!E42 -> 393 | G43: ='Page S-4'!H42 -> 0 | K43: 0
A44: 33 | B44: ='Page S-4'!D43 -> 393 | C44: ='Page S-4'!E43 -> None | G44: ='Page S-4'!H43 -> 0 | K44: 0
A45: 34 | B45: ='Page S-4'!D44 -> 394 | C45: ='Page S-4'!E44 -> None | G45: ='Page S-4'!H44 -> 0 | K45: 0
A46: 35 | B46: ='Page S-4'!D45 -> 395 | C46: ='Page S-4'!E45 -> None | G46: ='Page S-4'!H45 -> 0 | K46: 0
A47: 36 | B47: ='Page S-4'!D46 -> 396 | C47: ='Page S-4'!E46 -> None | G47: ='Page S-4'!H46 -> 0 | K47: 0
A48: 37 | B48: ='Page S-4'!D47 -> 397 | C48: ='Page S-4'!E47 -> None | G48: ='Page S-4'!H47 -> 0 | K48: 0
A49: =A48+1 -> 38 | D49: Total | E49: =SUM(E9:E48) -> 13035.22 | F49: 35235.39 | G49: 0 | H49: 0 | I49: 0 | J49: 0 | K49: 48270.61
E50: (Total to Pg 9 & Pg S-1) | K50: (Total to Pg. 4)
B52: Indicates a link to another worksheet within workbook
B53: Indicates formula cell(s) | K53: (To be used when filing under seal.)
J71: Public
J72: Highly Confidential

Sheet Page S-6
A1: 1 | I1: For the calendar year of January 1 - December 31, | J1: =IF(Cover!D13>0, Cover!D13, "") -> 2012
A2: 2 | B2: Company Name: | C2: =IF(Cover!A1>0, Cover!A1, "") -> 
B4: GENERAL INFORMATION
A5: 3 | B5: Treatment Facilities - Please describe process.
B6: Aerobic Submerged attached growth BioFilter, anerobic tanks and sand filter with UV Disinfection.
A8: 4 | B8: Was your treatment plant: | D8: x | E8: constructed in place | F8: OR | H8: purchased as a package unit?
A10: 5 | B10: Were your lift stations: | D10: x | E10: constructed in place | F10: OR | H10: purchased as a package unit?
A12: 6 | B12: What is the designated capacity of your treatment facilities? | F12: 51000
A14: 7 | B14: What percent of designed capacity is currently being utilized? | F14: 0.32
A16: =A14+1 -> 8 | B16: Please describe the treatment process for liquid waste.
B17: Pumped through sand filter and exposed to UV Treatment before entering receiving stream.
A19: =A16+1 -> 9 | B19: Please describe the treatment process for waste solids.
B20: Waste Solids collected in anerobic tanks and removed by contract hauler.
A22: =A19+1 -> 10 | B22: Where is the point of discharge for liquid waste?
B23: Liquid waste enters unnamed tributary to Piper Creek e'ly center of WWTF.
A25: =A22+1 -> 11 | B25: What is the ultimate disposal of waste solids and how obtained?
B26: Solid wastes transferred to permitted treatment facility by permitted contract hauler.
A28: =A25+1 -> 12 | B28: List any equipment failures occurring during the year. Please state when failure occurred and briefly describe the failure and corrective measures taken.
B31: COLLECTING SEWERS (measurement in feet)
B32: Kind of Pipe (i.e. Cast Iron, VCP, PVC, etc.) (a) | E32: Diameter of Pipe (b) | F32: Total No. at Beginning of Year (c ) | H32: Total No. of Additions During the Year (d) | I32: Total No. Removed or Abandoned During the Year (e) | J32: Total No. at End of Year (f)
A33: =A28+1 -> 13 | B33: Force:
A34: =A33+1 -> 14 | B34: PVC | E34: 4" | F34: 8076 | J34: 8076
A35: =A34+1 -> 15 | B35: Gravity:
A36: =A35+1 -> 16 | B36: PVC | E36: 8" | F36: 10762 | J36: 10762
A37: =A36+1 -> 17
B39: LIFT STATIONS
B40: Pumps: Name, Size, Type | D40: Location | H40: H.P. | I40: GPM | J40: TDH
A41: =A37+1 -> 18 | D41: Same
A42: =A41+1 -> 19
A43: =A42+1 -> 20
J46: (To be used when filing under seal.)
K64: Public
K65: Highly Confidential

Sheet Verification Page
C2: Annual Report of | F2: =IF(Cover!A1>0, Cover!A1, "") -> 
H3: for the calendar year of January 1 - December 31, | P3: =IF(Cover!D13>0, Cover!D13, "") -> 2012
D6: VERIFICATION
C8: The foregoing report must be verified by the oath of the President, Treasurer, General Manager or Receiver of the company. The oath required may be taken before any person authorized to administer an oath (Notary Public) by the laws of the State in which the same is taken.
D9: OATH
C11: State Of | E11: Missouri | J11: }
J12: } | K12: ss:
C13: County Of | E13: Polk | J13: }
E14: Ronda Riden | L14: makes oath and says that
E15: Name of Affiant (Company Official/Representative)
C16: s/he is | E16: Secretary/Treasurer
E17: Official Title of the Affiant (Company Official/Representative)
C18: of | E18: Southtown Utilities Company, Inc.
E19: Exact Legal Title or Name of the Respondent (Certificated Company Name)
C20: and is located at | E20: 4642 S. 131st Rd, Bolivar, MO 65613 | O20: ,
E21: Address and Telephone Number of the Affiant (Company Official/Representative)
C23: that s/he has examined the foregoing report; that to the best of his or her knowledge, information, and belief, all statements of fact contained in the said report are true and the said report is a correct statement of the business and affairs of the above-named respondent.
D24: from | E24: January 1 | G24: , | H24: =IF(Cover!D13>0, Cover!D13, "") -> 2012 | I24: , to and including | J24: December 31 | M24: , | N24: =IF(Cover!D13>0, Cover!D13, "") -> 2012
E25: Month/Day | H25: Year | J25: Month/Day | N25: Year
H26: /s/ Ronda Riden
H27: Signature of Affiant (Company Official/Representative)
D29: Subscribed and sworn to before me, a Notary Public, in and for the State and County above named,
D30: this | E30: 25 | H30: day of | I30: March | K30: , | L30: 2013 | M30: .
D31: My Commission expires | G31: 2016-04-18 | M31: ,
H32: /s/ Brenda Pearson
I33: Signature of Notary Public
C34: Missouri Revised Statutes § 392.210 or §393.140
A35: (See Instructions Pages II and III for more information to complete this page. )
